Workbook

Sheet Sheet2
A1: م | B1: التاريخ | C1: وارد | H1: منصرف | K1: رصيد
C2: رقم التشغيلة | D2: اجمالى | E2: كمية | F2: سعر | H2: اجمالى | I2: كمية | J2: سعر | K2: اجمالى | L2: كمية | M2: سعر
D3: =SUM(D4:D14) -> 0 | E3: =SUM(E4:E14) -> 1500 | F3: =D3/E3 -> 0 | G3: رقم مستند الصرف | H3: =SUM(H4:H14) -> 0 | I3: =SUM(I4:I14) -> 0 | J3: =H3/I3 -> 
B4: 1982-10-10 | C4: 101 | E4: 1500
B19: 2020-10-10 | C19: 0 | E19: 0 | G19: 105 | I19: 500

Sheet Sheet1
F4: الصفحة الاولي مطلوب اسمها يكون اضافة للمخازن وبها عناصر الاضافة
F5: يكون فيها اختيارين عند اختيار احدهما ( اضافة منتج تام الصنع ) او ( اضافة مواد خام ومستلزمات تشغيل )
F6: وبناء على الاختيار تظهر عناصر اوتكون ممكنه وتختفى عناصر او تكون غير ممكنة
F8: فى حالة اختيار ( اضافة منتج تام للمخازن) | I8: فى حالة اختيار (اضافة مواد خام او مستلزمات تشغيل)
F9: يظهر اختيارين جدد ينبغى اختيار احدهما من بين اصناف المنتجات التامة ( سكر معبا - ارز معبا ) ممكن مثلا ان تكون الاصناف فى قائمة منسدلة , وبعد الاختيار ادخال العناصر ادناه | I9: ينبغى اختيار الصنف من بين اصناف المواد الخام ومستلزمات التشغيل ( سكر خام - ارز خام - كيس تعبئة هاى - كيس تعبئة لامينشن - كيس باكيتة هاى - كيس باكيتة نايلون ) ممكن مثلا تكون الاصناف فى قائمة منسدلة , وبعد الاختيار ادخال العناصر ادناه
F10: التاريخ : | I10: التاريخ :
F11: رقم التشغيلة : | I11: كمية الوارد :
F12: كمية الوارد : | G12: محسوبة بمعادلة موجوده | I12: اجمالى المدفوع :
F13: اجمالى المدفوع :
F15: الصفحة الثانية مطلوب اسمها يكون صرف من المخازن وبها عناصر الصرف ( بنفس فكرة الصفحة الاولى )
F17: فى حالة صرف منتج تام للمخازن | I17: فى حالة اضافة مواد خام او مستلزمات تشغيل
F18: ينبغى اختيار الصنف من بين اصناف المنتجات التامة ( سكر معبا - ارز معبا ) وبعد الاختيار ادخال العناصر ادناه | I18: ينبغى اختيار الصنف من بين اصناف المواد الخام ومستلزمات التشغيل ( سكر خام - ارز خام - كيس تعبئة هاى - كيس تعبئة لامينشن - كيس باكيتة هاى - كيس باكيتة نايلون ) وبعد الاختيار ادخال العناصر ادناه
F19: التاريخ : | I19: التاريخ :
F20: فاتورة رقم | I20: تشغيلة رقم :
F21: كمية المنصرف : | I21: كمية المنصرف :
A22: ***** | B22: بعد ادخال العناصر المطلوب ادخالها (اضافة او صرف ) يوجد زر لترحيل البيانات كل فى جدوله باضافة سطر جديد فى الصفحات الموجوده بالمرفق

Sheet main
B1: رصيد المخزن | C1: تكلفة المخزون | D1: تكلفة الوحدة | E1: رصيد المخزن | F1: تكلفة المخزون | G1: تكلفة الوحدة
A2: سكر معبا كيلو | B2: =INDEX(SUGAR!$L:$L,SUMPRODUCT((SUGAR!$L$6:$L$10000<>"")*(SUGAR!$L$6:$L$10000<>" ")*1)+5) -> 0.3 | C2: =INDEX(SUGAR!$K:$K,SUMPRODUCT((SUGAR!$K$6:$K$10000<>"")*(SUGAR!$K$6:$K$10000<>" ")*1)+5) -> 21.10434948 | D2: =IFERROR(C2/B2,0) -> 70.3478316 | E2: =LOOKUP(1E+24,SUGAR!L:L) -> 0.3 | F2: =LOOKUP(1E+24,SUGAR!K:K) -> 21.10434948 | G2: =IFERROR(F2/E2,0) -> 70.3478316
A3: ارز معبا كيلو | B3: =INDEX('ارز معبا كيلو'!$L:$L,SUMPRODUCT(('ارز معبا كيلو'!$L$6:$L$10000<>"")*('ارز معبا كيلو'!$L$6:$L$10000<>" ")*1)+5) -> 5 | C3: =INDEX('ارز معبا كيلو'!$K:$K,SUMPRODUCT(('ارز معبا كيلو'!$K$6:$K$10000<>"")*('ارز معبا كيلو'!$K$6:$K$10000<>" ")*1)+5) -> 289.1609195 | D3: =IFERROR(C3/B3,0) -> 57.83218391 | E3: =LOOKUP(1E+24,'ارز معبا كيلو'!L:L) -> 5 | F3: =LOOKUP(1E+24,'ارز معبا كيلو'!K:K) -> 289.1609195 | G3: =IFERROR(F3/E3,0) -> 57.83218391
A4: سكر خام | B4: =INDEX('سكر خام'!$K:$K,SUMPRODUCT(('سكر خام'!$K$6:$K$10002<>"")*('سكر خام'!$K$6:$K$10002<>" ")*1)+5) -> 0 | C4: =INDEX('سكر خام'!$J:$J,SUMPRODUCT(('سكر خام'!$J$6:$J$10002<>"")*('سكر خام'!$J$6:$J$10002<>" ")*1)+5) -> 0 | D4: =IFERROR(C4/B4,0) -> 0 | E4: =LOOKUP(1E+24,'سكر خام'!K:K) -> 0 | F4: =LOOKUP(1E+24,'سكر خام'!J:J) -> 0 | G4: =IFERROR(F4/E4,0) -> 0
A5: ارز خام | B5: =INDEX('ارز خام'!$K:$K,SUMPRODUCT(('ارز خام'!$K$6:$K$10000<>"")*('ارز خام'!$K$6:$K$10000<>" ")*1)+5) -> 0 | C5: =INDEX('ارز خام'!$J:$J,SUMPRODUCT(('ارز خام'!$J$6:$J$10000<>"")*('ارز خام'!$J$6:$J$10000<>" ")*1)+5) -> 0 | D5: 0 | E5: =LOOKUP(1E+24,'ارز خام'!K:K) -> 0 | F5: =LOOKUP(1E+24,'ارز خام'!J:J) -> 0 | G5: 0
A6: كيس هاي 1 ك | B6: =INDEX('كيس هاي 1 ك'!$K:$K,SUMPRODUCT(('كيس هاي 1 ك'!$K$6:$K$10000<>"")*('كيس هاي 1 ك'!$K$6:$K$10000<>" ")*1)+5) -> 65.395 | C6: =INDEX('كيس هاي 1 ك'!$J:$J,SUMPRODUCT(('كيس هاي 1 ك'!$J$6:$J$10000<>"")*('كيس هاي 1 ك'!$J$6:$J$10000<>" ")*1)+5) -> 2049.9425 | D6: 31.34708311 | E6: =LOOKUP(1E+24,'كيس هاي 1 ك'!K:K) -> 65.395 | F6: =LOOKUP(1E+24,'كيس هاي 1 ك'!J:J) -> 2049.9425 | G6: 31.34708311
A7: كيس ليمينيشن 1 ك | B7: =INDEX('كيس ليمينيشن 1 ك'!$K:$K,SUMPRODUCT(('كيس ليمينيشن 1 ك'!$K$6:$K$10000<>"")*('كيس ليمينيشن 1 ك'!$K$6:$K$10000<>" ")*1)+5) -> 24.5 | C7: =INDEX('كيس ليمينيشن 1 ك'!$J:$J,SUMPRODUCT(('كيس ليمينيشن 1 ك'!$J$6:$J$10000<>"")*('كيس ليمينيشن 1 ك'!$J$6:$J$10000<>" ")*1)+5) -> 1427.533333 | D7: 58.26666667 | E7: =LOOKUP(1E+24,'كيس ليمينيشن 1 ك'!K:K) -> 24.5 | F7: =LOOKUP(1E+24,'كيس ليمينيشن 1 ك'!J:J) -> 1427.533333 | G7: 58.26666667
A8: باكيتة هاي | B8: =INDEX('باكيتة هاي'!$K:$K,SUMPRODUCT(('باكيتة هاي'!$K$6:$K$10000<>"")*('باكيتة هاي'!$K$6:$K$10000<>" ")*1)+5) -> 17 | C8: =INDEX('باكيتة هاي'!$J:$J,SUMPRODUCT(('باكيتة هاي'!$J$6:$J$10000<>"")*('باكيتة هاي'!$J$6:$J$10000<>" ")*1)+5) -> 507.3846154 | D8: 29.84615385 | E8: =LOOKUP(1E+24,'باكيتة هاي'!K:K) -> 17 | F8: =LOOKUP(1E+24,'باكيتة هاي'!J:J) -> 507.3846154 | G8: 29.84615385
A9: باكيتة نايلون | B9: =INDEX('باكيتة نايلون'!$K:$K,SUMPRODUCT(('باكيتة نايلون'!$K$6:$K$10000<>"")*('باكيتة نايلون'!$K$6:$K$10000<>" ")*1)+5) -> 23.5 | C9: =INDEX('باكيتة نايلون'!$J:$J,SUMPRODUCT(('باكيتة نايلون'!$J$6:$J$10000<>"")*('باكيتة نايلون'!$J$6:$J$10000<>" ")*1)+5) -> 775.5 | D9: 33 | E9: =LOOKUP(1E+24,'باكيتة نايلون'!K:K) -> 23.5 | F9: =LOOKUP(1E+24,'باكيتة نايلون'!J:J) -> 775.5 | G9: 33

Sheet SUGAR
A1: كارت صنف ( سكر معبا كيلو )
K2: =LOOKUP(1E+24,K:K) -> 21.10434948 | L2: =LOOKUP(1E+24,L:L) -> 0.3 | M2: =LOOKUP(1E+24,M:M) -> 70.3478316
A3: م | B3: التاريخ | C3: وارد | H3: منصرف | K3: رصيد
C4: رقم التشغيلة | D4: اجمالى | E4: كمية | F4: سعر | H4: اجمالى | I4: كمية | J4: سعر | K4: اجمالى | L4: كمية | M4: سعر
D5: =SUM(D6:D16) -> 70169.67288 | E5: =SUM(E6:E16) -> 997.5 | F5: =D5/E5 -> 70.34553673 | G5: رقم مستند الصرف | H5: =SUM(H6:H16) -> 1833.789271 | I5: =SUM(I6:I16) -> 26.1 | J5: =H5/I5 -> 70.26012533
A6: 1 | B6: 2021-01-04 | C6: ت ق 1 | D6: =IFERROR(VLOOKUP(C6,'سكر خام'!$F$4:$L$1000,2,0)+VLOOKUP(C6,'كيس هاي 1 ك'!$F$4:$L$1000,2,0)+VLOOKUP(C6,'باكيتة هاي'!$F$4:$K$1000,2,0),0) -> 6604.75 | E6: 95.3 | F6: =IFERROR(IF(OR(D6="",E6=""),"",D6/E6),0) -> 69.30482686 | H6: 0 | I6: 0 | J6: 0 | K6: =D6 -> 6604.75 | L6: =E6 -> 95.3 | M6: =IFERROR(K6/L6,"") -> 69.30482686
A7: 2 | B7: 2021-01-07 | C7: ت ق 2 | D7: =IFERROR(VLOOKUP(C7,'سكر خام'!$F$4:$L$1000,2,0)+VLOOKUP(C7,'كيس هاي 1 ك'!$F$4:$L$1000,2,0)+VLOOKUP(C7,'باكيتة هاي'!$F$4:$K$1000,2,0),0) -> 15871.59066 | E7: 226 | F7: 70.22827725 | H7: =IF(I7="","",I7*J7) -> 0 | I7: 0 | J7: =IF(B7="","",IF(E7>0,0,M6)) -> 0 | K7: =IFERROR(IF(B7="","",IF(E7>0,K6+D7,L7*M7)),"") -> 22476.34066 | L7: =IF(E7+I7=0,"",L6+E7-I7) -> 321.3 | M7: =IF(OR(E7+I7<0,B7=""),"",IF(E7>0,K7/L7,IF(L7=0,0,M6))) -> 69.95437491
A8: 3 | B8: 2021-01-08 | C8: ت ق 3 | D8: =IFERROR(VLOOKUP(C8,'سكر خام'!$F$4:$L$1000,2,0)+VLOOKUP(C8,'كيس هاي 1 ك'!$F$4:$L$1000,2,0)+VLOOKUP(C8,'باكيتة هاي'!$F$4:$K$1000,2,0),0) -> 8126.139286 | E8: 115.5 | F8: 70.35618429 | H8: 0 | I8: 0 | J8: 0 | K8: 30602.47995 | L8: 436.8 | M8: 70.06062258
A9: 4 | B9: 2021-01-09 | C9: ت ق 4 | D9: =IFERROR(VLOOKUP(C9,'سكر خام'!$F$4:$L$1000,2,0)+VLOOKUP(C9,'كيس هاي 1 ك'!$F$4:$L$1000,2,0)+VLOOKUP(C9,'باكيتة هاي'!$F$4:$K$1000,2,0),0) -> 12005.12555 | E9: 170.5 | F9: 70.41129355 | H9: 0 | I9: 0 | J9: 0 | K9: 42607.60549 | L9: 607.3 | M9: 70.15907376
A10: 5 | B10: 2021-01-10 | C10: ت ق 5 | D10: =IFERROR(VLOOKUP(C10,'سكر خام'!$F$4:$L$1000,2,0)+VLOOKUP(C10,'كيس هاي 1 ك'!$F$4:$L$1000,2,0)+VLOOKUP(C10,'باكيتة هاي'!$F$4:$K$1000,2,0),0) -> 8121.961209 | E10: 115 | F10: 70.62574964 | H10: 0 | I10: 0 | J10: 0 | K10: 50729.5667 | L10: 722.3 | M10: 70.23337492
A11: 9 | B11: 2021-01-11 | C11: 0 | D11: =IFERROR(VLOOKUP(C11,'سكر خام'!$F$4:$L$1000,2,0)+VLOOKUP(C11,'كيس هاي 1 ك'!$F$4:$L$1000,2,0)+VLOOKUP(C11,'باكيتة هاي'!$F$4:$K$1000,2,0),0) -> 0 | E11: 0 | F11: 0 | G11: ف1 | H11: 1404.667498 | I11: 20 | J11: 70.23337492 | K11: 49324.8992 | L11: 702.3 | M11: 70.23337492
A12: 6 | B12: 2021-01-16 | C12: ت ق 6 | D12: =IFERROR(VLOOKUP(C12,'سكر خام'!$F$4:$L$1000,2,0)+VLOOKUP(C12,'كيس هاي 1 ك'!$F$4:$L$1000,2,0)+VLOOKUP(C12,'باكيتة هاي'!$F$4:$K$1000,2,0),0) -> 15552.47956 | E12: 220.2 | F12: 70.62888084 | H12: 0 | I12: 0 | J12: 0 | K12: 64877.37877 | L12: 922.5 | M12: 70.32778186
A13: 7 | B13: 2021-01-18 | C13: ت ق 7 | D13: =IFERROR(VLOOKUP(C13,'سكر خام'!$F$4:$L$1000,2,0)+VLOOKUP(C13,'كيس هاي 1 ك'!$F$4:$L$1000,2,0)+VLOOKUP(C13,'باكيتة هاي'!$F$4:$K$1000,2,0),0) -> 3887.626621 | E13: 55 | F13: 70.68412038 | H13: 0 | I13: 0 | J13: 0 | K13: 68765.00539 | L13: 977.5 | M13: 70.3478316
A14: 10 | B14: 2021-01-18 | C14: 0 | D14: =IFERROR(VLOOKUP(C14,'سكر خام'!$F$4:$L$1000,2,0)+VLOOKUP(C14,'كيس هاي 1 ك'!$F$4:$L$1000,2,0)+VLOOKUP(C14,'باكيتة هاي'!$F$4:$K$1000,2,0),0) -> 0 | E14: 0 | F14: 0 | G14: ف2 | H14: 70.3478316 | I14: 1 | J14: 70.3478316 | K14: 68694.65755 | L14: 976.5 | M14: 70.3478316
A15: 11 | B15: 2021-01-18 | C15: 0 | D15: =IFERROR(VLOOKUP(C15,'سكر خام'!$F$4:$L$1000,2,0)+VLOOKUP(C15,'كيس هاي 1 ك'!$F$4:$L$1000,2,0)+VLOOKUP(C15,'باكيتة هاي'!$F$4:$K$1000,2,0),0) -> 0 | E15: 0 | F15: 0 | G15: ف3 | H15: 7.03478316 | I15: 0.1 | J15: 70.3478316 | K15: 68687.62277 | L15: 976.4 | M15: 70.3478316
A16: 12 | B16: 2021-01-18 | C16: 0 | D16: =IFERROR(VLOOKUP(C16,'سكر خام'!$F$4:$L$1000,2,0)+VLOOKUP(C16,'كيس هاي 1 ك'!$F$4:$L$1000,2,0)+VLOOKUP(C16,'باكيتة هاي'!$F$4:$K$1000,2,0),0) -> 0 | E16: 0 | F16: 0 | G16: ف4 | H16: 351.739158 | I16: 5 | J16: 70.3478316 | K16: 68335.88361 | L16: 971.4 | M16: 70.3478316
A17: 13 | B17: 2021-01-19 | C17: 0 | D17: =IFERROR(VLOOKUP(C17,'سكر خام'!$F$4:$L$1000,2,0)+VLOOKUP(C17,'كيس هاي 1 ك'!$F$4:$L$1000,2,0)+VLOOKUP(C17,'باكيتة هاي'!$F$4:$K$1000,2,0),0) -> 0 | E17: 0 | F17: 0 | G17: ف6 | H17: 1758.69579 | I17: 25 | J17: 70.3478316 | K17: 66577.18782 | L17: 946.4 | M17: 70.3478316
A18: 14 | B18: 2021-01-23 | C18: 0 | D18: =IFERROR(VLOOKUP(C18,'سكر خام'!$F$4:$L$1000,2,0)+VLOOKUP(C18,'كيس هاي 1 ك'!$F$4:$L$1000,2,0)+VLOOKUP(C18,'باكيتة هاي'!$F$4:$K$1000,2,0),0) -> 0 | E18: 0 | F18: 0 | G18: ف7 | H18: 703.478316 | I18: 10 | J18: 70.3478316 | K18: 65873.70951 | L18: 936.4 | M18: 70.3478316
A19: 15 | B19: 2021-01-23 | C19: 0 | D19: =IFERROR(VLOOKUP(C19,'سكر خام'!$F$4:$L$1000,2,0)+VLOOKUP(C19,'كيس هاي 1 ك'!$F$4:$L$1000,2,0)+VLOOKUP(C19,'باكيتة هاي'!$F$4:$K$1000,2,0),0) -> 0 | E19: 0 | F19: 0 | G19: ف8 | H19: 7034.78316 | I19: 100 | J19: 70.3478316 | K19: 58838.92635 | L19: 836.4 | M19: 70.3478316
A20: 16 | B20: 2021-01-24 | C20: 0 | D20: =IFERROR(VLOOKUP(C20,'سكر خام'!$F$4:$L$1000,2,0)+VLOOKUP(C20,'كيس هاي 1 ك'!$F$4:$L$1000,2,0)+VLOOKUP(C20,'باكيتة هاي'!$F$4:$K$1000,2,0),0) -> 0 | E20: 0 | F20: 0 | G20: ف11 | H20: 703.478316 | I20: 10 | J20: 70.3478316 | K20: 58135.44803 | L20: 826.4 | M20: 70.3478316
A21: 17 | B21: 2021-01-26 | C21: 0 | D21: =IFERROR(VLOOKUP(C21,'سكر خام'!$F$4:$L$1000,2,0)+VLOOKUP(C21,'كيس هاي 1 ك'!$F$4:$L$1000,2,0)+VLOOKUP(C21,'باكيتة هاي'!$F$4:$K$1000,2,0),0) -> 0 | E21: 0 | F21: 0 | G21: ف14 | H21: 351.739158 | I21: 5 | J21: 70.3478316 | K21: 57783.70887 | L21: 821.4 | M21: 70.3478316
A22: 18 | B22: 2021-01-26 | C22: 0 | D22: =IFERROR(VLOOKUP(C22,'سكر خام'!$F$4:$L$1000,2,0)+VLOOKUP(C22,'كيس هاي 1 ك'!$F$4:$L$1000,2,0)+VLOOKUP(C22,'باكيتة هاي'!$F$4:$K$1000,2,0),0) -> 0 | E22: 0 | F22: 0 | G22: ف15 | H22: 281.3913264 | I22: 4 | J22: 70.3478316 | K22: 57502.31755 | L22: 817.4 | M22: 70.3478316
A23: 19 | B23: 2021-01-26 | C23: 0 | D23: =IFERROR(VLOOKUP(C23,'سكر خام'!$F$4:$L$1000,2,0)+VLOOKUP(C23,'كيس هاي 1 ك'!$F$4:$L$1000,2,0)+VLOOKUP(C23,'باكيتة هاي'!$F$4:$K$1000,2,0),0) -> 0 | E23: 0 | F23: 0 | G23: ف16 | H23: 70.3478316 | I23: 1 | J23: 70.3478316 | K23: 57431.96972 | L23: 816.4 | M23: 70.3478316
A24: 20 | B24: 2021-01-26 | C24: 0 | D24: =IFERROR(VLOOKUP(C24,'سكر خام'!$F$4:$L$1000,2,0)+VLOOKUP(C24,'كيس هاي 1 ك'!$F$4:$L$1000,2,0)+VLOOKUP(C24,'باكيتة هاي'!$F$4:$K$1000,2,0),0) -> 0 | E24: 0 | F24: 0 | G24: ف17 | H24: 211.0434948 | I24: 3 | J24: 70.3478316 | K24: 57220.92622 | L24: 813.4 | M24: 70.3478316
A25: 21 | B25: 2021-01-27 | C25: 0 | D25: =IFERROR(VLOOKUP(C25,'سكر خام'!$F$4:$L$1000,2,0)+VLOOKUP(C25,'كيس هاي 1 ك'!$F$4:$L$1000,2,0)+VLOOKUP(C25,'باكيتة هاي'!$F$4:$K$1000,2,0),0) -> 0 | E25: 0 | F25: 0 | G25: ف18 | H25: 3517.39158 | I25: 50 | J25: 70.3478316 | K25: 53703.53464 | L25: 763.4 | M25: 70.3478316
A26: 22 | B26: 2021-01-27 | C26: 0 | D26: =IFERROR(VLOOKUP(C26,'سكر خام'!$F$4:$L$1000,2,0)+VLOOKUP(C26,'كيس هاي 1 ك'!$F$4:$L$1000,2,0)+VLOOKUP(C26,'باكيتة هاي'!$F$4:$K$1000,2,0),0) -> 0 | E26: 0 | F26: 0 | G26: ف19 | H26: 2462.174106 | I26: 35 | J26: 70.3478316 | K26: 51241.36054 | L26: 728.4 | M26: 70.3478316
A27: 23 | B27: 2021-01-27 | C27: 0 | D27: =IFERROR(VLOOKUP(C27,'سكر خام'!$F$4:$L$1000,2,0)+VLOOKUP(C27,'كيس هاي 1 ك'!$F$4:$L$1000,2,0)+VLOOKUP(C27,'باكيتة هاي'!$F$4:$K$1000,2,0),0) -> 0 | E27: 0 | F27: 0 | G27: ف20 | H27: 140.6956632 | I27: 2 | J27: 70.3478316 | K27: 51100.66487 | L27: 726.4 | M27: 70.3478316
A28: 24 | B28: 2021-01-27 | C28: 0 | D28: =IFERROR(VLOOKUP(C28,'سكر خام'!$F$4:$L$1000,2,0)+VLOOKUP(C28,'كيس هاي 1 ك'!$F$4:$L$1000,2,0)+VLOOKUP(C28,'باكيتة هاي'!$F$4:$K$1000,2,0),0) -> 0 | E28: 0 | F28: 0 | G28: ف21 | H28: 4220.869896 | I28: 60 | J28: 70.3478316 | K28: 46879.79498 | L28: 666.4 | M28: 70.3478316
A29: 25 | B29: 2021-01-27 | C29: 0 | D29: =IFERROR(VLOOKUP(C29,'سكر خام'!$F$4:$L$1000,2,0)+VLOOKUP(C29,'كيس هاي 1 ك'!$F$4:$L$1000,2,0)+VLOOKUP(C29,'باكيتة هاي'!$F$4:$K$1000,2,0),0) -> 0 | E29: 0 | F29: 0 | G29: ف22 | H29: 14069.56632 | I29: 200 | J29: 70.3478316 | K29: 32810.22866 | L29: 466.4 | M29: 70.3478316
A30: 26 | B30: 2021-01-27 | C30: 0 | D30: =IFERROR(VLOOKUP(C30,'سكر خام'!$F$4:$L$1000,2,0)+VLOOKUP(C30,'كيس هاي 1 ك'!$F$4:$L$1000,2,0)+VLOOKUP(C30,'باكيتة هاي'!$F$4:$K$1000,2,0),0) -> 0 | E30: 0 | F30: 0 | G30: ف23 | H30: 703.478316 | I30: 10 | J30: 70.3478316 | K30: 32106.75034 | L30: 456.4 | M30: 70.3478316
A31: 27 | B31: 2021-01-27 | C31: 0 | D31: =IFERROR(VLOOKUP(C31,'سكر خام'!$F$4:$L$1000,2,0)+VLOOKUP(C31,'كيس هاي 1 ك'!$F$4:$L$1000,2,0)+VLOOKUP(C31,'باكيتة هاي'!$F$4:$K$1000,2,0),0) -> 0 | E31: 0 | F31: 0 | G31: ف25 | H31: 2180.78278 | I31: 31 | J31: 70.3478316 | K31: 29925.96756 | L31: 425.4 | M31: 70.3478316
A32: 28 | B32: 2021-01-27 | C32: 0 | D32: =IFERROR(VLOOKUP(C32,'سكر خام'!$F$4:$L$1000,2,0)+VLOOKUP(C32,'كيس هاي 1 ك'!$F$4:$L$1000,2,0)+VLOOKUP(C32,'باكيتة هاي'!$F$4:$K$1000,2,0),0) -> 0 | E32: 0 | F32: 0 | G32: ف26 | H32: 1266.260969 | I32: 18 | J32: 70.3478316 | K32: 28659.70659 | L32: 407.4 | M32: 70.3478316
A33: 29 | B33: 2021-01-27 | C33: 0 | D33: =IFERROR(VLOOKUP(C33,'سكر خام'!$F$4:$L$1000,2,0)+VLOOKUP(C33,'كيس هاي 1 ك'!$F$4:$L$1000,2,0)+VLOOKUP(C33,'باكيتة هاي'!$F$4:$K$1000,2,0),0) -> 0 | E33: 0 | F33: 0 | G33: ف27 | H33: 351.739158 | I33: 5 | J33: 70.3478316 | K33: 28307.96743 | L33: 402.4 | M33: 70.3478316
A34: 30 | B34: 2021-01-28 | C34: 0 | D34: =IFERROR(VLOOKUP(C34,'سكر خام'!$F$4:$L$1000,2,0)+VLOOKUP(C34,'كيس هاي 1 ك'!$F$4:$L$1000,2,0)+VLOOKUP(C34,'باكيتة هاي'!$F$4:$K$1000,2,0),0) -> 0 | E34: 0 | F34: 0 | G34: ف29 | H34: 14069.56632 | I34: 200 | J34: 70.3478316 | K34: 14238.40112 | L34: 202.4 | M34: 70.3478316
A35: 31 | B35: 2021-01-28 | C35: 0 | D35: =IFERROR(VLOOKUP(C35,'سكر خام'!$F$4:$L$1000,2,0)+VLOOKUP(C35,'كيس هاي 1 ك'!$F$4:$L$1000,2,0)+VLOOKUP(C35,'باكيتة هاي'!$F$4:$K$1000,2,0),0) -> 0 | E35: 0 | F35: 0 | G35: ف30 | H35: 703.478316 | I35: 10 | J35: 70.3478316 | K35: 13534.9228 | L35: 192.4 | M35: 70.3478316
A36: 32 | B36: 2021-01-28 | C36: 0 | D36: =IFERROR(VLOOKUP(C36,'سكر خام'!$F$4:$L$1000,2,0)+VLOOKUP(C36,'كيس هاي 1 ك'!$F$4:$L$1000,2,0)+VLOOKUP(C36,'باكيتة هاي'!$F$4:$K$1000,2,0),0) -> 0 | E36: 0 | F36: 0 | G36: ف32 | H36: 10552.17474 | I36: 150 | J36: 70.3478316 | K36: 2982.74806 | L36: 42.4 | M36: 70.3478316
A37: 33 | B37: 2021-01-28 | C37: 0 | D37: =IFERROR(VLOOKUP(C37,'سكر خام'!$F$4:$L$1000,2,0)+VLOOKUP(C37,'كيس هاي 1 ك'!$F$4:$L$1000,2,0)+VLOOKUP(C37,'باكيتة هاي'!$F$4:$K$1000,2,0),0) -> 0 | E37: 0 | F37: 0 | G37: ف33 | H37: 7.03478316 | I37: 0.1 | J37: 70.3478316 | K37: 2975.713277 | L37: 42.3 | M37: 70.3478316
A38: 34 | B38: 2021-01-31 | C38: 0 | D38: =IFERROR(VLOOKUP(C38,'سكر خام'!$F$4:$L$1000,2,0)+VLOOKUP(C38,'كيس هاي 1 ك'!$F$4:$L$1000,2,0)+VLOOKUP(C38,'باكيتة هاي'!$F$4:$K$1000,2,0),0) -> 0 | E38: 0 | F38: 0 | G38: ف35 | H38: 140.6956632 | I38: 2 | J38: 70.3478316 | K38: 2835.017613 | L38: 40.3 | M38: 70.3478316
A39: 35 | B39: 2021-01-31 | C39: 0 | D39: =IFERROR(VLOOKUP(C39,'سكر خام'!$F$4:$L$1000,2,0)+VLOOKUP(C39,'كيس هاي 1 ك'!$F$4:$L$1000,2,0)+VLOOKUP(C39,'باكيتة هاي'!$F$4:$K$1000,2,0),0) -> 0 | E39: 0 | F39: 0 | G39: ف36 | H39: 2813.913264 | I39: 40 | J39: 70.3478316 | K39: 21.10434948 | L39: 0.3 | M39: 70.3478316
A40: 8 | D40: =IFERROR(VLOOKUP(C40,'سكر خام'!$F$4:$L$1000,2,0)+VLOOKUP(C40,'كيس هاي 1 ك'!$F$4:$L$1000,2,0)+VLOOKUP(C40,'باكيتة هاي'!$F$4:$K$1000,2,0),0) -> 0
A41: 36 | D41: =IFERROR(VLOOKUP(C41,'سكر خام'!$F$4:$L$1000,2,0)+VLOOKUP(C41,'كيس هاي 1 ك'!$F$4:$L$1000,2,0)+VLOOKUP(C41,'باكيتة هاي'!$F$4:$K$1000,2,0),0) -> 0
A42: 37 | D42: =IFERROR(VLOOKUP(C42,'سكر خام'!$F$4:$L$1000,2,0)+VLOOKUP(C42,'كيس هاي 1 ك'!$F$4:$L$1000,2,0)+VLOOKUP(C42,'باكيتة هاي'!$F$4:$K$1000,2,0),0) -> 0
A43: 38 | D43: =IFERROR(VLOOKUP(C43,'سكر خام'!$F$4:$L$1000,2,0)+VLOOKUP(C43,'كيس هاي 1 ك'!$F$4:$L$1000,2,0)+VLOOKUP(C43,'باكيتة هاي'!$F$4:$K$1000,2,0),0) -> 0
A44: 39 | D44: =IFERROR(VLOOKUP(C44,'سكر خام'!$F$4:$L$1000,2,0)+VLOOKUP(C44,'كيس هاي 1 ك'!$F$4:$L$1000,2,0)+VLOOKUP(C44,'باكيتة هاي'!$F$4:$K$1000,2,0),0) -> 0
A45: 40 | D45: =IFERROR(VLOOKUP(C45,'سكر خام'!$F$4:$L$1000,2,0)+VLOOKUP(C45,'كيس هاي 1 ك'!$F$4:$L$1000,2,0)+VLOOKUP(C45,'باكيتة هاي'!$F$4:$K$1000,2,0),0) -> 0
A46: 41 | D46: =IFERROR(VLOOKUP(C46,'سكر خام'!$F$4:$L$1000,2,0)+VLOOKUP(C46,'كيس هاي 1 ك'!$F$4:$L$1000,2,0)+VLOOKUP(C46,'باكيتة هاي'!$F$4:$K$1000,2,0),0) -> 0
A47: 42 | D47: =IFERROR(VLOOKUP(C47,'سكر خام'!$F$4:$L$1000,2,0)+VLOOKUP(C47,'كيس هاي 1 ك'!$F$4:$L$1000,2,0)+VLOOKUP(C47,'باكيتة هاي'!$F$4:$K$1000,2,0),0) -> 0
A48: 43 | D48: =IFERROR(VLOOKUP(C48,'سكر خام'!$F$4:$L$1000,2,0)+VLOOKUP(C48,'كيس هاي 1 ك'!$F$4:$L$1000,2,0)+VLOOKUP(C48,'باكيتة هاي'!$F$4:$K$1000,2,0),0) -> 0
A49: 44 | D49: =IFERROR(VLOOKUP(C49,'سكر خام'!$F$4:$L$1000,2,0)+VLOOKUP(C49,'كيس هاي 1 ك'!$F$4:$L$1000,2,0)+VLOOKUP(C49,'باكيتة هاي'!$F$4:$K$1000,2,0),0) -> 0
A50: 45 | D50: =IFERROR(VLOOKUP(C50,'سكر خام'!$F$4:$L$1000,2,0)+VLOOKUP(C50,'كيس هاي 1 ك'!$F$4:$L$1000,2,0)+VLOOKUP(C50,'باكيتة هاي'!$F$4:$K$1000,2,0),0) -> 0
A51: 46 | D51: =IFERROR(VLOOKUP(C51,'سكر خام'!$F$4:$L$1000,2,0)+VLOOKUP(C51,'كيس هاي 1 ك'!$F$4:$L$1000,2,0)+VLOOKUP(C51,'باكيتة هاي'!$F$4:$K$1000,2,0),0) -> 0
A52: 47 | D52: =IFERROR(VLOOKUP(C52,'سكر خام'!$F$4:$L$1000,2,0)+VLOOKUP(C52,'كيس هاي 1 ك'!$F$4:$L$1000,2,0)+VLOOKUP(C52,'باكيتة هاي'!$F$4:$K$1000,2,0),0) -> 0
A53: 48 | D53: =IFERROR(VLOOKUP(C53,'سكر خام'!$F$4:$L$1000,2,0)+VLOOKUP(C53,'كيس هاي 1 ك'!$F$4:$L$1000,2,0)+VLOOKUP(C53,'باكيتة هاي'!$F$4:$K$1000,2,0),0) -> 0
A54: 49 | D54: =IFERROR(VLOOKUP(C54,'سكر خام'!$F$4:$L$1000,2,0)+VLOOKUP(C54,'كيس هاي 1 ك'!$F$4:$L$1000,2,0)+VLOOKUP(C54,'باكيتة هاي'!$F$4:$K$1000,2,0),0) -> 0
A55: 50 | D55: =IFERROR(VLOOKUP(C55,'سكر خام'!$F$4:$L$1000,2,0)+VLOOKUP(C55,'كيس هاي 1 ك'!$F$4:$L$1000,2,0)+VLOOKUP(C55,'باكيتة هاي'!$F$4:$K$1000,2,0),0) -> 0
A56: 51 | D56: =IFERROR(VLOOKUP(C56,'سكر خام'!$F$4:$L$1000,2,0)+VLOOKUP(C56,'كيس هاي 1 ك'!$F$4:$L$1000,2,0)+VLOOKUP(C56,'باكيتة هاي'!$F$4:$K$1000,2,0),0) -> 0
A57: 52 | D57: =IFERROR(VLOOKUP(C57,'سكر خام'!$F$4:$L$1000,2,0)+VLOOKUP(C57,'كيس هاي 1 ك'!$F$4:$L$1000,2,0)+VLOOKUP(C57,'باكيتة هاي'!$F$4:$K$1000,2,0),0) -> 0
A58: 53 | D58: =IFERROR(VLOOKUP(C58,'سكر خام'!$F$4:$L$1000,2,0)+VLOOKUP(C58,'كيس هاي 1 ك'!$F$4:$L$1000,2,0)+VLOOKUP(C58,'باكيتة هاي'!$F$4:$K$1000,2,0),0) -> 0
A59: 54 | D59: =IFERROR(VLOOKUP(C59,'سكر خام'!$F$4:$L$1000,2,0)+VLOOKUP(C59,'كيس هاي 1 ك'!$F$4:$L$1000,2,0)+VLOOKUP(C59,'باكيتة هاي'!$F$4:$K$1000,2,0),0) -> 0
A60: 55 | D60: =IFERROR(VLOOKUP(C60,'سكر خام'!$F$4:$L$1000,2,0)+VLOOKUP(C60,'كيس هاي 1 ك'!$F$4:$L$1000,2,0)+VLOOKUP(C60,'باكيتة هاي'!$F$4:$K$1000,2,0),0) -> 0
A61: 56 | D61: =IFERROR(VLOOKUP(C61,'سكر خام'!$F$4:$L$1000,2,0)+VLOOKUP(C61,'كيس هاي 1 ك'!$F$4:$L$1000,2,0)+VLOOKUP(C61,'باكيتة هاي'!$F$4:$K$1000,2,0),0) -> 0
A62: 57 | D62: =IFERROR(VLOOKUP(C62,'سكر خام'!$F$4:$L$1000,2,0)+VLOOKUP(C62,'كيس هاي 1 ك'!$F$4:$L$1000,2,0)+VLOOKUP(C62,'باكيتة هاي'!$F$4:$K$1000,2,0),0) -> 0
A63: 58 | D63: =IFERROR(VLOOKUP(C63,'سكر خام'!$F$4:$L$1000,2,0)+VLOOKUP(C63,'كيس هاي 1 ك'!$F$4:$L$1000,2,0)+VLOOKUP(C63,'باكيتة هاي'!$F$4:$K$1000,2,0),0) -> 0
A64: 59 | D64: =IFERROR(VLOOKUP(C64,'سكر خام'!$F$4:$L$1000,2,0)+VLOOKUP(C64,'كيس هاي 1 ك'!$F$4:$L$1000,2,0)+VLOOKUP(C64,'باكيتة هاي'!$F$4:$K$1000,2,0),0) -> 0
A65: 60 | D65: =IFERROR(VLOOKUP(C65,'سكر خام'!$F$4:$L$1000,2,0)+VLOOKUP(C65,'كيس هاي 1 ك'!$F$4:$L$1000,2,0)+VLOOKUP(C65,'باكيتة هاي'!$F$4:$K$1000,2,0),0) -> 0
A66: 61 | D66: =IFERROR(VLOOKUP(C66,'سكر خام'!$F$4:$L$1000,2,0)+VLOOKUP(C66,'كيس هاي 1 ك'!$F$4:$L$1000,2,0)+VLOOKUP(C66,'باكيتة هاي'!$F$4:$K$1000,2,0),0) -> 0
A67: 62 | D67: =IFERROR(VLOOKUP(C67,'سكر خام'!$F$4:$L$1000,2,0)+VLOOKUP(C67,'كيس هاي 1 ك'!$F$4:$L$1000,2,0)+VLOOKUP(C67,'باكيتة هاي'!$F$4:$K$1000,2,0),0) -> 0
A68: 63 | D68: =IFERROR(VLOOKUP(C68,'سكر خام'!$F$4:$L$1000,2,0)+VLOOKUP(C68,'كيس هاي 1 ك'!$F$4:$L$1000,2,0)+VLOOKUP(C68,'باكيتة هاي'!$F$4:$K$1000,2,0),0) -> 0
A69: 64 | D69: =IFERROR(VLOOKUP(C69,'سكر خام'!$F$4:$L$1000,2,0)+VLOOKUP(C69,'كيس هاي 1 ك'!$F$4:$L$1000,2,0)+VLOOKUP(C69,'باكيتة هاي'!$F$4:$K$1000,2,0),0) -> 0
A70: 65 | D70: =IFERROR(VLOOKUP(C70,'سكر خام'!$F$4:$L$1000,2,0)+VLOOKUP(C70,'كيس هاي 1 ك'!$F$4:$L$1000,2,0)+VLOOKUP(C70,'باكيتة هاي'!$F$4:$K$1000,2,0),0) -> 0 | F70: =IFERROR(IF(OR(D70="",E70=""),"",D70/E70),0) -> 
A71: 66 | D71: =IFERROR(VLOOKUP(C71,'سكر خام'!$F$4:$L$1000,2,0)+VLOOKUP(C71,'كيس هاي 1 ك'!$F$4:$L$1000,2,0)+VLOOKUP(C71,'باكيتة هاي'!$F$4:$K$1000,2,0),0) -> 0 | H71: =IF(I71="","",I71*J71) ->  | J71: =IF(B71="","",IF(E71>0,0,M70)) ->  | K71: =IFERROR(IF(B71="","",IF(E71>0,K70+D71,L71*M71)),"") ->  | L71: =IF(E71+I71=0,"",L70+E71-I71) ->  | M71: =IF(OR(E71+I71<0,B71=""),"",IF(E71>0,K71/L71,IF(L71=0,0,M70))) -> 
A72: 67 | D72: =IFERROR(VLOOKUP(C72,'سكر خام'!$F$4:$L$1000,2,0)+VLOOKUP(C72,'كيس هاي 1 ك'!$F$4:$L$1000,2,0)+VLOOKUP(C72,'باكيتة هاي'!$F$4:$K$1000,2,0),0) -> 0
A73: 68 | D73: =IFERROR(VLOOKUP(C73,'سكر خام'!$F$4:$L$1000,2,0)+VLOOKUP(C73,'كيس هاي 1 ك'!$F$4:$L$1000,2,0)+VLOOKUP(C73,'باكيتة هاي'!$F$4:$K$1000,2,0),0) -> 0
A74: 69 | D74: =IFERROR(VLOOKUP(C74,'سكر خام'!$F$4:$L$1000,2,0)+VLOOKUP(C74,'كيس هاي 1 ك'!$F$4:$L$1000,2,0)+VLOOKUP(C74,'باكيتة هاي'!$F$4:$K$1000,2,0),0) -> 0
A75: 70 | D75: =IFERROR(VLOOKUP(C75,'سكر خام'!$F$4:$L$1000,2,0)+VLOOKUP(C75,'كيس هاي 1 ك'!$F$4:$L$1000,2,0)+VLOOKUP(C75,'باكيتة هاي'!$F$4:$K$1000,2,0),0) -> 0
A76: 71 | D76: =IFERROR(VLOOKUP(C76,'سكر خام'!$F$4:$L$1000,2,0)+VLOOKUP(C76,'كيس هاي 1 ك'!$F$4:$L$1000,2,0)+VLOOKUP(C76,'باكيتة هاي'!$F$4:$K$1000,2,0),0) -> 0
A77: 72 | D77: =IFERROR(VLOOKUP(C77,'سكر خام'!$F$4:$L$1000,2,0)+VLOOKUP(C77,'كيس هاي 1 ك'!$F$4:$L$1000,2,0)+VLOOKUP(C77,'باكيتة هاي'!$F$4:$K$1000,2,0),0) -> 0
A78: 73 | D78: =IFERROR(VLOOKUP(C78,'سكر خام'!$F$4:$L$1000,2,0)+VLOOKUP(C78,'كيس هاي 1 ك'!$F$4:$L$1000,2,0)+VLOOKUP(C78,'باكيتة هاي'!$F$4:$K$1000,2,0),0) -> 0
A79: 74 | D79: =IFERROR(VLOOKUP(C79,'سكر خام'!$F$4:$L$1000,2,0)+VLOOKUP(C79,'كيس هاي 1 ك'!$F$4:$L$1000,2,0)+VLOOKUP(C79,'باكيتة هاي'!$F$4:$K$1000,2,0),0) -> 0
A80: 75 | D80: =IFERROR(VLOOKUP(C80,'سكر خام'!$F$4:$L$1000,2,0)+VLOOKUP(C80,'كيس هاي 1 ك'!$F$4:$L$1000,2,0)+VLOOKUP(C80,'باكيتة هاي'!$F$4:$K$1000,2,0),0) -> 0
A81: 76 | D81: =IFERROR(VLOOKUP(C81,'سكر خام'!$F$4:$L$1000,2,0)+VLOOKUP(C81,'كيس هاي 1 ك'!$F$4:$L$1000,2,0)+VLOOKUP(C81,'باكيتة هاي'!$F$4:$K$1000,2,0),0) -> 0
A82: 77 | D82: =IFERROR(VLOOKUP(C82,'سكر خام'!$F$4:$L$1000,2,0)+VLOOKUP(C82,'كيس هاي 1 ك'!$F$4:$L$1000,2,0)+VLOOKUP(C82,'باكيتة هاي'!$F$4:$K$1000,2,0),0) -> 0
A83: 78 | D83: =IFERROR(VLOOKUP(C83,'سكر خام'!$F$4:$L$1000,2,0)+VLOOKUP(C83,'كيس هاي 1 ك'!$F$4:$L$1000,2,0)+VLOOKUP(C83,'باكيتة هاي'!$F$4:$K$1000,2,0),0) -> 0
A84: 79 | D84: =IFERROR(VLOOKUP(C84,'سكر خام'!$F$4:$L$1000,2,0)+VLOOKUP(C84,'كيس هاي 1 ك'!$F$4:$L$1000,2,0)+VLOOKUP(C84,'باكيتة هاي'!$F$4:$K$1000,2,0),0) -> 0
A85: 80 | D85: =IFERROR(VLOOKUP(C85,'سكر خام'!$F$4:$L$1000,2,0)+VLOOKUP(C85,'كيس هاي 1 ك'!$F$4:$L$1000,2,0)+VLOOKUP(C85,'باكيتة هاي'!$F$4:$K$1000,2,0),0) -> 0
A86: 81 | D86: =IFERROR(VLOOKUP(C86,'سكر خام'!$F$4:$L$1000,2,0)+VLOOKUP(C86,'كيس هاي 1 ك'!$F$4:$L$1000,2,0)+VLOOKUP(C86,'باكيتة هاي'!$F$4:$K$1000,2,0),0) -> 0
A87: 82 | D87: =IFERROR(VLOOKUP(C87,'سكر خام'!$F$4:$L$1000,2,0)+VLOOKUP(C87,'كيس هاي 1 ك'!$F$4:$L$1000,2,0)+VLOOKUP(C87,'باكيتة هاي'!$F$4:$K$1000,2,0),0) -> 0
A88: 83 | D88: =IFERROR(VLOOKUP(C88,'سكر خام'!$F$4:$L$1000,2,0)+VLOOKUP(C88,'كيس هاي 1 ك'!$F$4:$L$1000,2,0)+VLOOKUP(C88,'باكيتة هاي'!$F$4:$K$1000,2,0),0) -> 0
A89: 84 | D89: =IFERROR(VLOOKUP(C89,'سكر خام'!$F$4:$L$1000,2,0)+VLOOKUP(C89,'كيس هاي 1 ك'!$F$4:$L$1000,2,0)+VLOOKUP(C89,'باكيتة هاي'!$F$4:$K$1000,2,0),0) -> 0
A90: 85 | D90: =IFERROR(VLOOKUP(C90,'سكر خام'!$F$4:$L$1000,2,0)+VLOOKUP(C90,'كيس هاي 1 ك'!$F$4:$L$1000,2,0)+VLOOKUP(C90,'باكيتة هاي'!$F$4:$K$1000,2,0),0) -> 0
A91: 86 | D91: =IFERROR(VLOOKUP(C91,'سكر خام'!$F$4:$L$1000,2,0)+VLOOKUP(C91,'كيس هاي 1 ك'!$F$4:$L$1000,2,0)+VLOOKUP(C91,'باكيتة هاي'!$F$4:$K$1000,2,0),0) -> 0
A92: 87 | D92: =IFERROR(VLOOKUP(C92,'سكر خام'!$F$4:$L$1000,2,0)+VLOOKUP(C92,'كيس هاي 1 ك'!$F$4:$L$1000,2,0)+VLOOKUP(C92,'باكيتة هاي'!$F$4:$K$1000,2,0),0) -> 0
A93: 88 | D93: =IFERROR(VLOOKUP(C93,'سكر خام'!$F$4:$L$1000,2,0)+VLOOKUP(C93,'كيس هاي 1 ك'!$F$4:$L$1000,2,0)+VLOOKUP(C93,'باكيتة هاي'!$F$4:$K$1000,2,0),0) -> 0
A94: 89 | D94: =IFERROR(VLOOKUP(C94,'سكر خام'!$F$4:$L$1000,2,0)+VLOOKUP(C94,'كيس هاي 1 ك'!$F$4:$L$1000,2,0)+VLOOKUP(C94,'باكيتة هاي'!$F$4:$K$1000,2,0),0) -> 0
A95: 90 | D95: =IFERROR(VLOOKUP(C95,'سكر خام'!$F$4:$L$1000,2,0)+VLOOKUP(C95,'كيس هاي 1 ك'!$F$4:$L$1000,2,0)+VLOOKUP(C95,'باكيتة هاي'!$F$4:$K$1000,2,0),0) -> 0
A96: 91 | D96: =IFERROR(VLOOKUP(C96,'سكر خام'!$F$4:$L$1000,2,0)+VLOOKUP(C96,'كيس هاي 1 ك'!$F$4:$L$1000,2,0)+VLOOKUP(C96,'باكيتة هاي'!$F$4:$K$1000,2,0),0) -> 0
A97: 92 | D97: =IFERROR(VLOOKUP(C97,'سكر خام'!$F$4:$L$1000,2,0)+VLOOKUP(C97,'كيس هاي 1 ك'!$F$4:$L$1000,2,0)+VLOOKUP(C97,'باكيتة هاي'!$F$4:$K$1000,2,0),0) -> 0
A98: 93 | D98: =IFERROR(VLOOKUP(C98,'سكر خام'!$F$4:$L$1000,2,0)+VLOOKUP(C98,'كيس هاي 1 ك'!$F$4:$L$1000,2,0)+VLOOKUP(C98,'باكيتة هاي'!$F$4:$K$1000,2,0),0) -> 0
A99: 94 | D99: =IFERROR(VLOOKUP(C99,'سكر خام'!$F$4:$L$1000,2,0)+VLOOKUP(C99,'كيس هاي 1 ك'!$F$4:$L$1000,2,0)+VLOOKUP(C99,'باكيتة هاي'!$F$4:$K$1000,2,0),0) -> 0
A100: 95 | D100: =IFERROR(VLOOKUP(C100,'سكر خام'!$F$4:$L$1000,2,0)+VLOOKUP(C100,'كيس هاي 1 ك'!$F$4:$L$1000,2,0)+VLOOKUP(C100,'باكيتة هاي'!$F$4:$K$1000,2,0),0) -> 0
A101: 96 | D101: =IFERROR(VLOOKUP(C101,'سكر خام'!$F$4:$L$1000,2,0)+VLOOKUP(C101,'كيس هاي 1 ك'!$F$4:$L$1000,2,0)+VLOOKUP(C101,'باكيتة هاي'!$F$4:$K$1000,2,0),0) -> 0
A102: 97 | D102: =IFERROR(VLOOKUP(C102,'سكر خام'!$F$4:$L$1000,2,0)+VLOOKUP(C102,'كيس هاي 1 ك'!$F$4:$L$1000,2,0)+VLOOKUP(C102,'باكيتة هاي'!$F$4:$K$1000,2,0),0) -> 0
A103: 98 | D103: =IFERROR(VLOOKUP(C103,'سكر خام'!$F$4:$L$1000,2,0)+VLOOKUP(C103,'كيس هاي 1 ك'!$F$4:$L$1000,2,0)+VLOOKUP(C103,'باكيتة هاي'!$F$4:$K$1000,2,0),0) -> 0
A104: 99 | D104: =IFERROR(VLOOKUP(C104,'سكر خام'!$F$4:$L$1000,2,0)+VLOOKUP(C104,'كيس هاي 1 ك'!$F$4:$L$1000,2,0)+VLOOKUP(C104,'باكيتة هاي'!$F$4:$K$1000,2,0),0) -> 0
A105: 100 | D105: =IFERROR(VLOOKUP(C105,'سكر خام'!$F$4:$L$1000,2,0)+VLOOKUP(C105,'كيس هاي 1 ك'!$F$4:$L$1000,2,0)+VLOOKUP(C105,'باكيتة هاي'!$F$4:$K$1000,2,0),0) -> 0
A106: 101 | D106: =IFERROR(VLOOKUP(C106,'سكر خام'!$F$4:$L$1000,2,0)+VLOOKUP(C106,'كيس هاي 1 ك'!$F$4:$L$1000,2,0)+VLOOKUP(C106,'باكيتة هاي'!$F$4:$K$1000,2,0),0) -> 0
A107: 102 | D107: =IFERROR(VLOOKUP(C107,'سكر خام'!$F$4:$L$1000,2,0)+VLOOKUP(C107,'كيس هاي 1 ك'!$F$4:$L$1000,2,0)+VLOOKUP(C107,'باكيتة هاي'!$F$4:$K$1000,2,0),0) -> 0
A108: 103 | D108: =IFERROR(VLOOKUP(C108,'سكر خام'!$F$4:$L$1000,2,0)+VLOOKUP(C108,'كيس هاي 1 ك'!$F$4:$L$1000,2,0)+VLOOKUP(C108,'باكيتة هاي'!$F$4:$K$1000,2,0),0) -> 0
A109: 104 | D109: =IFERROR(VLOOKUP(C109,'سكر خام'!$F$4:$L$1000,2,0)+VLOOKUP(C109,'كيس هاي 1 ك'!$F$4:$L$1000,2,0)+VLOOKUP(C109,'باكيتة هاي'!$F$4:$K$1000,2,0),0) -> 0
A110: 105 | D110: =IFERROR(VLOOKUP(C110,'سكر خام'!$F$4:$L$1000,2,0)+VLOOKUP(C110,'كيس هاي 1 ك'!$F$4:$L$1000,2,0)+VLOOKUP(C110,'باكيتة هاي'!$F$4:$K$1000,2,0),0) -> 0
A111: 106 | D111: =IFERROR(VLOOKUP(C111,'سكر خام'!$F$4:$L$1000,2,0)+VLOOKUP(C111,'كيس هاي 1 ك'!$F$4:$L$1000,2,0)+VLOOKUP(C111,'باكيتة هاي'!$F$4:$K$1000,2,0),0) -> 0
A112: 107 | D112: =IFERROR(VLOOKUP(C112,'سكر خام'!$F$4:$L$1000,2,0)+VLOOKUP(C112,'كيس هاي 1 ك'!$F$4:$L$1000,2,0)+VLOOKUP(C112,'باكيتة هاي'!$F$4:$K$1000,2,0),0) -> 0
A113: 108 | D113: =IFERROR(VLOOKUP(C113,'سكر خام'!$F$4:$L$1000,2,0)+VLOOKUP(C113,'كيس هاي 1 ك'!$F$4:$L$1000,2,0)+VLOOKUP(C113,'باكيتة هاي'!$F$4:$K$1000,2,0),0) -> 0
A114: 109 | D114: =IFERROR(VLOOKUP(C114,'سكر خام'!$F$4:$L$1000,2,0)+VLOOKUP(C114,'كيس هاي 1 ك'!$F$4:$L$1000,2,0)+VLOOKUP(C114,'باكيتة هاي'!$F$4:$K$1000,2,0),0) -> 0
A115: 110 | D115: =IFERROR(VLOOKUP(C115,'سكر خام'!$F$4:$L$1000,2,0)+VLOOKUP(C115,'كيس هاي 1 ك'!$F$4:$L$1000,2,0)+VLOOKUP(C115,'باكيتة هاي'!$F$4:$K$1000,2,0),0) -> 0
A116: 111 | D116: =IFERROR(VLOOKUP(C116,'سكر خام'!$F$4:$L$1000,2,0)+VLOOKUP(C116,'كيس هاي 1 ك'!$F$4:$L$1000,2,0)+VLOOKUP(C116,'باكيتة هاي'!$F$4:$K$1000,2,0),0) -> 0
A117: 112 | D117: =IFERROR(VLOOKUP(C117,'سكر خام'!$F$4:$L$1000,2,0)+VLOOKUP(C117,'كيس هاي 1 ك'!$F$4:$L$1000,2,0)+VLOOKUP(C117,'باكيتة هاي'!$F$4:$K$1000,2,0),0) -> 0
A118: 113 | D118: =IFERROR(VLOOKUP(C118,'سكر خام'!$F$4:$L$1000,2,0)+VLOOKUP(C118,'كيس هاي 1 ك'!$F$4:$L$1000,2,0)+VLOOKUP(C118,'باكيتة هاي'!$F$4:$K$1000,2,0),0) -> 0
A119: 114 | D119: =IFERROR(VLOOKUP(C119,'سكر خام'!$F$4:$L$1000,2,0)+VLOOKUP(C119,'كيس هاي 1 ك'!$F$4:$L$1000,2,0)+VLOOKUP(C119,'باكيتة هاي'!$F$4:$K$1000,2,0),0) -> 0
A120: 115 | D120: =IFERROR(VLOOKUP(C120,'سكر خام'!$F$4:$L$1000,2,0)+VLOOKUP(C120,'كيس هاي 1 ك'!$F$4:$L$1000,2,0)+VLOOKUP(C120,'باكيتة هاي'!$F$4:$K$1000,2,0),0) -> 0
A121: 116 | D121: =IFERROR(VLOOKUP(C121,'سكر خام'!$F$4:$L$1000,2,0)+VLOOKUP(C121,'كيس هاي 1 ك'!$F$4:$L$1000,2,0)+VLOOKUP(C121,'باكيتة هاي'!$F$4:$K$1000,2,0),0) -> 0
A122: 117 | D122: =IFERROR(VLOOKUP(C122,'سكر خام'!$F$4:$L$1000,2,0)+VLOOKUP(C122,'كيس هاي 1 ك'!$F$4:$L$1000,2,0)+VLOOKUP(C122,'باكيتة هاي'!$F$4:$K$1000,2,0),0) -> 0
A123: 118 | D123: =IFERROR(VLOOKUP(C123,'سكر خام'!$F$4:$L$1000,2,0)+VLOOKUP(C123,'كيس هاي 1 ك'!$F$4:$L$1000,2,0)+VLOOKUP(C123,'باكيتة هاي'!$F$4:$K$1000,2,0),0) -> 0
A124: 119 | D124: =IFERROR(VLOOKUP(C124,'سكر خام'!$F$4:$L$1000,2,0)+VLOOKUP(C124,'كيس هاي 1 ك'!$F$4:$L$1000,2,0)+VLOOKUP(C124,'باكيتة هاي'!$F$4:$K$1000,2,0),0) -> 0
A125: 120 | D125: =IFERROR(VLOOKUP(C125,'سكر خام'!$F$4:$L$1000,2,0)+VLOOKUP(C125,'كيس هاي 1 ك'!$F$4:$L$1000,2,0)+VLOOKUP(C125,'باكيتة هاي'!$F$4:$K$1000,2,0),0) -> 0
A126: 121 | D126: =IFERROR(VLOOKUP(C126,'سكر خام'!$F$4:$L$1000,2,0)+VLOOKUP(C126,'كيس هاي 1 ك'!$F$4:$L$1000,2,0)+VLOOKUP(C126,'باكيتة هاي'!$F$4:$K$1000,2,0),0) -> 0
A127: 122 | D127: =IFERROR(VLOOKUP(C127,'سكر خام'!$F$4:$L$1000,2,0)+VLOOKUP(C127,'كيس هاي 1 ك'!$F$4:$L$1000,2,0)+VLOOKUP(C127,'باكيتة هاي'!$F$4:$K$1000,2,0),0) -> 0
A128: 123 | D128: =IFERROR(VLOOKUP(C128,'سكر خام'!$F$4:$L$1000,2,0)+VLOOKUP(C128,'كيس هاي 1 ك'!$F$4:$L$1000,2,0)+VLOOKUP(C128,'باكيتة هاي'!$F$4:$K$1000,2,0),0) -> 0
A129: 124 | D129: =IFERROR(VLOOKUP(C129,'سكر خام'!$F$4:$L$1000,2,0)+VLOOKUP(C129,'كيس هاي 1 ك'!$F$4:$L$1000,2,0)+VLOOKUP(C129,'باكيتة هاي'!$F$4:$K$1000,2,0),0) -> 0
A130: 125 | D130: =IFERROR(VLOOKUP(C130,'سكر خام'!$F$4:$L$1000,2,0)+VLOOKUP(C130,'كيس هاي 1 ك'!$F$4:$L$1000,2,0)+VLOOKUP(C130,'باكيتة هاي'!$F$4:$K$1000,2,0),0) -> 0
A131: 126 | D131: =IFERROR(VLOOKUP(C131,'سكر خام'!$F$4:$L$1000,2,0)+VLOOKUP(C131,'كيس هاي 1 ك'!$F$4:$L$1000,2,0)+VLOOKUP(C131,'باكيتة هاي'!$F$4:$K$1000,2,0),0) -> 0
A132: 127 | D132: =IFERROR(VLOOKUP(C132,'سكر خام'!$F$4:$L$1000,2,0)+VLOOKUP(C132,'كيس هاي 1 ك'!$F$4:$L$1000,2,0)+VLOOKUP(C132,'باكيتة هاي'!$F$4:$K$1000,2,0),0) -> 0
A133: 128 | D133: =IFERROR(VLOOKUP(C133,'سكر خام'!$F$4:$L$1000,2,0)+VLOOKUP(C133,'كيس هاي 1 ك'!$F$4:$L$1000,2,0)+VLOOKUP(C133,'باكيتة هاي'!$F$4:$K$1000,2,0),0) -> 0
A134: 129 | D134: =IFERROR(VLOOKUP(C134,'سكر خام'!$F$4:$L$1000,2,0)+VLOOKUP(C134,'كيس هاي 1 ك'!$F$4:$L$1000,2,0)+VLOOKUP(C134,'باكيتة هاي'!$F$4:$K$1000,2,0),0) -> 0 | F134: =IFERROR(IF(OR(D134="",E134=""),"",D134/E134),0) -> 
A135: 130 | D135: =IFERROR(VLOOKUP(C135,'سكر خام'!$F$4:$L$1000,2,0)+VLOOKUP(C135,'كيس هاي 1 ك'!$F$4:$L$1000,2,0)+VLOOKUP(C135,'باكيتة هاي'!$F$4:$K$1000,2,0),0) -> 0 | H135: =IF(I135="","",I135*J135) ->  | J135: =IF(B135="","",IF(E135>0,0,M134)) ->  | K135: =IFERROR(IF(B135="","",IF(E135>0,K134+D135,L135*M135)),"") ->  | L135: =IF(E135+I135=0,"",L134+E135-I135) ->  | M135: =IF(OR(E135+I135<0,B135=""),"",IF(E135>0,K135/L135,IF(L135=0,0,M134))) -> 
A136: 131 | D136: =IFERROR(VLOOKUP(C136,'سكر خام'!$F$4:$L$1000,2,0)+VLOOKUP(C136,'كيس هاي 1 ك'!$F$4:$L$1000,2,0)+VLOOKUP(C136,'باكيتة هاي'!$F$4:$K$1000,2,0),0) -> 0
A137: 132 | D137: =IFERROR(VLOOKUP(C137,'سكر خام'!$F$4:$L$1000,2,0)+VLOOKUP(C137,'كيس هاي 1 ك'!$F$4:$L$1000,2,0)+VLOOKUP(C137,'باكيتة هاي'!$F$4:$K$1000,2,0),0) -> 0
A138: 133 | D138: =IFERROR(VLOOKUP(C138,'سكر خام'!$F$4:$L$1000,2,0)+VLOOKUP(C138,'كيس هاي 1 ك'!$F$4:$L$1000,2,0)+VLOOKUP(C138,'باكيتة هاي'!$F$4:$K$1000,2,0),0) -> 0
A139: 134 | D139: =IFERROR(VLOOKUP(C139,'سكر خام'!$F$4:$L$1000,2,0)+VLOOKUP(C139,'كيس هاي 1 ك'!$F$4:$L$1000,2,0)+VLOOKUP(C139,'باكيتة هاي'!$F$4:$K$1000,2,0),0) -> 0
A140: 135 | D140: =IFERROR(VLOOKUP(C140,'سكر خام'!$F$4:$L$1000,2,0)+VLOOKUP(C140,'كيس هاي 1 ك'!$F$4:$L$1000,2,0)+VLOOKUP(C140,'باكيتة هاي'!$F$4:$K$1000,2,0),0) -> 0
A141: 136 | D141: =IFERROR(VLOOKUP(C141,'سكر خام'!$F$4:$L$1000,2,0)+VLOOKUP(C141,'كيس هاي 1 ك'!$F$4:$L$1000,2,0)+VLOOKUP(C141,'باكيتة هاي'!$F$4:$K$1000,2,0),0) -> 0
A142: 137 | D142: =IFERROR(VLOOKUP(C142,'سكر خام'!$F$4:$L$1000,2,0)+VLOOKUP(C142,'كيس هاي 1 ك'!$F$4:$L$1000,2,0)+VLOOKUP(C142,'باكيتة هاي'!$F$4:$K$1000,2,0),0) -> 0
A143: 138 | D143: =IFERROR(VLOOKUP(C143,'سكر خام'!$F$4:$L$1000,2,0)+VLOOKUP(C143,'كيس هاي 1 ك'!$F$4:$L$1000,2,0)+VLOOKUP(C143,'باكيتة هاي'!$F$4:$K$1000,2,0),0) -> 0
A144: 139 | D144: =IFERROR(VLOOKUP(C144,'سكر خام'!$F$4:$L$1000,2,0)+VLOOKUP(C144,'كيس هاي 1 ك'!$F$4:$L$1000,2,0)+VLOOKUP(C144,'باكيتة هاي'!$F$4:$K$1000,2,0),0) -> 0
A145: 140 | D145: =IFERROR(VLOOKUP(C145,'سكر خام'!$F$4:$L$1000,2,0)+VLOOKUP(C145,'كيس هاي 1 ك'!$F$4:$L$1000,2,0)+VLOOKUP(C145,'باكيتة هاي'!$F$4:$K$1000,2,0),0) -> 0
A146: 141 | D146: =IFERROR(VLOOKUP(C146,'سكر خام'!$F$4:$L$1000,2,0)+VLOOKUP(C146,'كيس هاي 1 ك'!$F$4:$L$1000,2,0)+VLOOKUP(C146,'باكيتة هاي'!$F$4:$K$1000,2,0),0) -> 0
A147: 142 | D147: =IFERROR(VLOOKUP(C147,'سكر خام'!$F$4:$L$1000,2,0)+VLOOKUP(C147,'كيس هاي 1 ك'!$F$4:$L$1000,2,0)+VLOOKUP(C147,'باكيتة هاي'!$F$4:$K$1000,2,0),0) -> 0
A148: 143 | D148: =IFERROR(VLOOKUP(C148,'سكر خام'!$F$4:$L$1000,2,0)+VLOOKUP(C148,'كيس هاي 1 ك'!$F$4:$L$1000,2,0)+VLOOKUP(C148,'باكيتة هاي'!$F$4:$K$1000,2,0),0) -> 0
A149: 144 | D149: =IFERROR(VLOOKUP(C149,'سكر خام'!$F$4:$L$1000,2,0)+VLOOKUP(C149,'كيس هاي 1 ك'!$F$4:$L$1000,2,0)+VLOOKUP(C149,'باكيتة هاي'!$F$4:$K$1000,2,0),0) -> 0
A150: 145 | D150: =IFERROR(VLOOKUP(C150,'سكر خام'!$F$4:$L$1000,2,0)+VLOOKUP(C150,'كيس هاي 1 ك'!$F$4:$L$1000,2,0)+VLOOKUP(C150,'باكيتة هاي'!$F$4:$K$1000,2,0),0) -> 0
A151: 146 | D151: =IFERROR(VLOOKUP(C151,'سكر خام'!$F$4:$L$1000,2,0)+VLOOKUP(C151,'كيس هاي 1 ك'!$F$4:$L$1000,2,0)+VLOOKUP(C151,'باكيتة هاي'!$F$4:$K$1000,2,0),0) -> 0
A152: 147 | D152: =IFERROR(VLOOKUP(C152,'سكر خام'!$F$4:$L$1000,2,0)+VLOOKUP(C152,'كيس هاي 1 ك'!$F$4:$L$1000,2,0)+VLOOKUP(C152,'باكيتة هاي'!$F$4:$K$1000,2,0),0) -> 0
A153: 148 | D153: =IFERROR(VLOOKUP(C153,'سكر خام'!$F$4:$L$1000,2,0)+VLOOKUP(C153,'كيس هاي 1 ك'!$F$4:$L$1000,2,0)+VLOOKUP(C153,'باكيتة هاي'!$F$4:$K$1000,2,0),0) -> 0
A154: 149 | D154: =IFERROR(VLOOKUP(C154,'سكر خام'!$F$4:$L$1000,2,0)+VLOOKUP(C154,'كيس هاي 1 ك'!$F$4:$L$1000,2,0)+VLOOKUP(C154,'باكيتة هاي'!$F$4:$K$1000,2,0),0) -> 0
A155: 150 | D155: =IFERROR(VLOOKUP(C155,'سكر خام'!$F$4:$L$1000,2,0)+VLOOKUP(C155,'كيس هاي 1 ك'!$F$4:$L$1000,2,0)+VLOOKUP(C155,'باكيتة هاي'!$F$4:$K$1000,2,0),0) -> 0
A156: 151 | D156: =IFERROR(VLOOKUP(C156,'سكر خام'!$F$4:$L$1000,2,0)+VLOOKUP(C156,'كيس هاي 1 ك'!$F$4:$L$1000,2,0)+VLOOKUP(C156,'باكيتة هاي'!$F$4:$K$1000,2,0),0) -> 0
A157: 152 | D157: =IFERROR(VLOOKUP(C157,'سكر خام'!$F$4:$L$1000,2,0)+VLOOKUP(C157,'كيس هاي 1 ك'!$F$4:$L$1000,2,0)+VLOOKUP(C157,'باكيتة هاي'!$F$4:$K$1000,2,0),0) -> 0
A158: 153 | D158: =IFERROR(VLOOKUP(C158,'سكر خام'!$F$4:$L$1000,2,0)+VLOOKUP(C158,'كيس هاي 1 ك'!$F$4:$L$1000,2,0)+VLOOKUP(C158,'باكيتة هاي'!$F$4:$K$1000,2,0),0) -> 0
A159: 154 | D159: =IFERROR(VLOOKUP(C159,'سكر خام'!$F$4:$L$1000,2,0)+VLOOKUP(C159,'كيس هاي 1 ك'!$F$4:$L$1000,2,0)+VLOOKUP(C159,'باكيتة هاي'!$F$4:$K$1000,2,0),0) -> 0
A160: 155 | D160: =IFERROR(VLOOKUP(C160,'سكر خام'!$F$4:$L$1000,2,0)+VLOOKUP(C160,'كيس هاي 1 ك'!$F$4:$L$1000,2,0)+VLOOKUP(C160,'باكيتة هاي'!$F$4:$K$1000,2,0),0) -> 0
A161: 156 | D161: =IFERROR(VLOOKUP(C161,'سكر خام'!$F$4:$L$1000,2,0)+VLOOKUP(C161,'كيس هاي 1 ك'!$F$4:$L$1000,2,0)+VLOOKUP(C161,'باكيتة هاي'!$F$4:$K$1000,2,0),0) -> 0
A162: 157 | D162: =IFERROR(VLOOKUP(C162,'سكر خام'!$F$4:$L$1000,2,0)+VLOOKUP(C162,'كيس هاي 1 ك'!$F$4:$L$1000,2,0)+VLOOKUP(C162,'باكيتة هاي'!$F$4:$K$1000,2,0),0) -> 0
A163: 158 | D163: =IFERROR(VLOOKUP(C163,'سكر خام'!$F$4:$L$1000,2,0)+VLOOKUP(C163,'كيس هاي 1 ك'!$F$4:$L$1000,2,0)+VLOOKUP(C163,'باكيتة هاي'!$F$4:$K$1000,2,0),0) -> 0
A164: 159 | D164: =IFERROR(VLOOKUP(C164,'سكر خام'!$F$4:$L$1000,2,0)+VLOOKUP(C164,'كيس هاي 1 ك'!$F$4:$L$1000,2,0)+VLOOKUP(C164,'باكيتة هاي'!$F$4:$K$1000,2,0),0) -> 0
A165: 160 | D165: =IFERROR(VLOOKUP(C165,'سكر خام'!$F$4:$L$1000,2,0)+VLOOKUP(C165,'كيس هاي 1 ك'!$F$4:$L$1000,2,0)+VLOOKUP(C165,'باكيتة هاي'!$F$4:$K$1000,2,0),0) -> 0
A166: 161 | D166: =IFERROR(VLOOKUP(C166,'سكر خام'!$F$4:$L$1000,2,0)+VLOOKUP(C166,'كيس هاي 1 ك'!$F$4:$L$1000,2,0)+VLOOKUP(C166,'باكيتة هاي'!$F$4:$K$1000,2,0),0) -> 0
A167: 162 | D167: =IFERROR(VLOOKUP(C167,'سكر خام'!$F$4:$L$1000,2,0)+VLOOKUP(C167,'كيس هاي 1 ك'!$F$4:$L$1000,2,0)+VLOOKUP(C167,'باكيتة هاي'!$F$4:$K$1000,2,0),0) -> 0
A168: 163 | D168: =IFERROR(VLOOKUP(C168,'سكر خام'!$F$4:$L$1000,2,0)+VLOOKUP(C168,'كيس هاي 1 ك'!$F$4:$L$1000,2,0)+VLOOKUP(C168,'باكيتة هاي'!$F$4:$K$1000,2,0),0) -> 0
A169: 164 | D169: =IFERROR(VLOOKUP(C169,'سكر خام'!$F$4:$L$1000,2,0)+VLOOKUP(C169,'كيس هاي 1 ك'!$F$4:$L$1000,2,0)+VLOOKUP(C169,'باكيتة هاي'!$F$4:$K$1000,2,0),0) -> 0
A170: 165 | D170: =IFERROR(VLOOKUP(C170,'سكر خام'!$F$4:$L$1000,2,0)+VLOOKUP(C170,'كيس هاي 1 ك'!$F$4:$L$1000,2,0)+VLOOKUP(C170,'باكيتة هاي'!$F$4:$K$1000,2,0),0) -> 0
A171: 166 | D171: =IFERROR(VLOOKUP(C171,'سكر خام'!$F$4:$L$1000,2,0)+VLOOKUP(C171,'كيس هاي 1 ك'!$F$4:$L$1000,2,0)+VLOOKUP(C171,'باكيتة هاي'!$F$4:$K$1000,2,0),0) -> 0
A172: 167 | D172: =IFERROR(VLOOKUP(C172,'سكر خام'!$F$4:$L$1000,2,0)+VLOOKUP(C172,'كيس هاي 1 ك'!$F$4:$L$1000,2,0)+VLOOKUP(C172,'باكيتة هاي'!$F$4:$K$1000,2,0),0) -> 0
A173: 168 | D173: =IFERROR(VLOOKUP(C173,'سكر خام'!$F$4:$L$1000,2,0)+VLOOKUP(C173,'كيس هاي 1 ك'!$F$4:$L$1000,2,0)+VLOOKUP(C173,'باكيتة هاي'!$F$4:$K$1000,2,0),0) -> 0
A174: 169 | D174: =IFERROR(VLOOKUP(C174,'سكر خام'!$F$4:$L$1000,2,0)+VLOOKUP(C174,'كيس هاي 1 ك'!$F$4:$L$1000,2,0)+VLOOKUP(C174,'باكيتة هاي'!$F$4:$K$1000,2,0),0) -> 0
A175: 170 | D175: =IFERROR(VLOOKUP(C175,'سكر خام'!$F$4:$L$1000,2,0)+VLOOKUP(C175,'كيس هاي 1 ك'!$F$4:$L$1000,2,0)+VLOOKUP(C175,'باكيتة هاي'!$F$4:$K$1000,2,0),0) -> 0
A176: 171 | D176: =IFERROR(VLOOKUP(C176,'سكر خام'!$F$4:$L$1000,2,0)+VLOOKUP(C176,'كيس هاي 1 ك'!$F$4:$L$1000,2,0)+VLOOKUP(C176,'باكيتة هاي'!$F$4:$K$1000,2,0),0) -> 0
A177: 172 | D177: =IFERROR(VLOOKUP(C177,'سكر خام'!$F$4:$L$1000,2,0)+VLOOKUP(C177,'كيس هاي 1 ك'!$F$4:$L$1000,2,0)+VLOOKUP(C177,'باكيتة هاي'!$F$4:$K$1000,2,0),0) -> 0
A178: 173 | D178: =IFERROR(VLOOKUP(C178,'سكر خام'!$F$4:$L$1000,2,0)+VLOOKUP(C178,'كيس هاي 1 ك'!$F$4:$L$1000,2,0)+VLOOKUP(C178,'باكيتة هاي'!$F$4:$K$1000,2,0),0) -> 0
A179: 174 | D179: =IFERROR(VLOOKUP(C179,'سكر خام'!$F$4:$L$1000,2,0)+VLOOKUP(C179,'كيس هاي 1 ك'!$F$4:$L$1000,2,0)+VLOOKUP(C179,'باكيتة هاي'!$F$4:$K$1000,2,0),0) -> 0
A180: 175 | D180: =IFERROR(VLOOKUP(C180,'سكر خام'!$F$4:$L$1000,2,0)+VLOOKUP(C180,'كيس هاي 1 ك'!$F$4:$L$1000,2,0)+VLOOKUP(C180,'باكيتة هاي'!$F$4:$K$1000,2,0),0) -> 0
A181: 176 | D181: =IFERROR(VLOOKUP(C181,'سكر خام'!$F$4:$L$1000,2,0)+VLOOKUP(C181,'كيس هاي 1 ك'!$F$4:$L$1000,2,0)+VLOOKUP(C181,'باكيتة هاي'!$F$4:$K$1000,2,0),0) -> 0
A182: 177 | D182: =IFERROR(VLOOKUP(C182,'سكر خام'!$F$4:$L$1000,2,0)+VLOOKUP(C182,'كيس هاي 1 ك'!$F$4:$L$1000,2,0)+VLOOKUP(C182,'باكيتة هاي'!$F$4:$K$1000,2,0),0) -> 0
A183: 178 | D183: =IFERROR(VLOOKUP(C183,'سكر خام'!$F$4:$L$1000,2,0)+VLOOKUP(C183,'كيس هاي 1 ك'!$F$4:$L$1000,2,0)+VLOOKUP(C183,'باكيتة هاي'!$F$4:$K$1000,2,0),0) -> 0
A184: 179 | D184: =IFERROR(VLOOKUP(C184,'سكر خام'!$F$4:$L$1000,2,0)+VLOOKUP(C184,'كيس هاي 1 ك'!$F$4:$L$1000,2,0)+VLOOKUP(C184,'باكيتة هاي'!$F$4:$K$1000,2,0),0) -> 0
A185: 180 | D185: =IFERROR(VLOOKUP(C185,'سكر خام'!$F$4:$L$1000,2,0)+VLOOKUP(C185,'كيس هاي 1 ك'!$F$4:$L$1000,2,0)+VLOOKUP(C185,'باكيتة هاي'!$F$4:$K$1000,2,0),0) -> 0
A186: 181 | D186: =IFERROR(VLOOKUP(C186,'سكر خام'!$F$4:$L$1000,2,0)+VLOOKUP(C186,'كيس هاي 1 ك'!$F$4:$L$1000,2,0)+VLOOKUP(C186,'باكيتة هاي'!$F$4:$K$1000,2,0),0) -> 0
A187: 182 | D187: =IFERROR(VLOOKUP(C187,'سكر خام'!$F$4:$L$1000,2,0)+VLOOKUP(C187,'كيس هاي 1 ك'!$F$4:$L$1000,2,0)+VLOOKUP(C187,'باكيتة هاي'!$F$4:$K$1000,2,0),0) -> 0
A188: 183 | D188: =IFERROR(VLOOKUP(C188,'سكر خام'!$F$4:$L$1000,2,0)+VLOOKUP(C188,'كيس هاي 1 ك'!$F$4:$L$1000,2,0)+VLOOKUP(C188,'باكيتة هاي'!$F$4:$K$1000,2,0),0) -> 0
A189: 184 | D189: =IFERROR(VLOOKUP(C189,'سكر خام'!$F$4:$L$1000,2,0)+VLOOKUP(C189,'كيس هاي 1 ك'!$F$4:$L$1000,2,0)+VLOOKUP(C189,'باكيتة هاي'!$F$4:$K$1000,2,0),0) -> 0
A190: 185 | D190: =IFERROR(VLOOKUP(C190,'سكر خام'!$F$4:$L$1000,2,0)+VLOOKUP(C190,'كيس هاي 1 ك'!$F$4:$L$1000,2,0)+VLOOKUP(C190,'باكيتة هاي'!$F$4:$K$1000,2,0),0) -> 0
A191: 186 | D191: =IFERROR(VLOOKUP(C191,'سكر خام'!$F$4:$L$1000,2,0)+VLOOKUP(C191,'كيس هاي 1 ك'!$F$4:$L$1000,2,0)+VLOOKUP(C191,'باكيتة هاي'!$F$4:$K$1000,2,0),0) -> 0
A192: 187 | D192: =IFERROR(VLOOKUP(C192,'سكر خام'!$F$4:$L$1000,2,0)+VLOOKUP(C192,'كيس هاي 1 ك'!$F$4:$L$1000,2,0)+VLOOKUP(C192,'باكيتة هاي'!$F$4:$K$1000,2,0),0) -> 0
A193: 188 | D193: =IFERROR(VLOOKUP(C193,'سكر خام'!$F$4:$L$1000,2,0)+VLOOKUP(C193,'كيس هاي 1 ك'!$F$4:$L$1000,2,0)+VLOOKUP(C193,'باكيتة هاي'!$F$4:$K$1000,2,0),0) -> 0
A194: 189 | D194: =IFERROR(VLOOKUP(C194,'سكر خام'!$F$4:$L$1000,2,0)+VLOOKUP(C194,'كيس هاي 1 ك'!$F$4:$L$1000,2,0)+VLOOKUP(C194,'باكيتة هاي'!$F$4:$K$1000,2,0),0) -> 0
A195: 190 | D195: =IFERROR(VLOOKUP(C195,'سكر خام'!$F$4:$L$1000,2,0)+VLOOKUP(C195,'كيس هاي 1 ك'!$F$4:$L$1000,2,0)+VLOOKUP(C195,'باكيتة هاي'!$F$4:$K$1000,2,0),0) -> 0
A196: 191 | D196: =IFERROR(VLOOKUP(C196,'سكر خام'!$F$4:$L$1000,2,0)+VLOOKUP(C196,'كيس هاي 1 ك'!$F$4:$L$1000,2,0)+VLOOKUP(C196,'باكيتة هاي'!$F$4:$K$1000,2,0),0) -> 0
A197: 192 | D197: =IFERROR(VLOOKUP(C197,'سكر خام'!$F$4:$L$1000,2,0)+VLOOKUP(C197,'كيس هاي 1 ك'!$F$4:$L$1000,2,0)+VLOOKUP(C197,'باكيتة هاي'!$F$4:$K$1000,2,0),0) -> 0
A198: 193 | D198: =IFERROR(VLOOKUP(C198,'سكر خام'!$F$4:$L$1000,2,0)+VLOOKUP(C198,'كيس هاي 1 ك'!$F$4:$L$1000,2,0)+VLOOKUP(C198,'باكيتة هاي'!$F$4:$K$1000,2,0),0) -> 0 | F198: =IFERROR(IF(OR(D198="",E198=""),"",D198/E198),0) -> 
A199: 194 | D199: =IFERROR(VLOOKUP(C199,'سكر خام'!$F$4:$L$1000,2,0)+VLOOKUP(C199,'كيس هاي 1 ك'!$F$4:$L$1000,2,0)+VLOOKUP(C199,'باكيتة هاي'!$F$4:$K$1000,2,0),0) -> 0 | H199: =IF(I199="","",I199*J199) ->  | J199: =IF(B199="","",IF(E199>0,0,M198)) ->  | K199: =IFERROR(IF(B199="","",IF(E199>0,K198+D199,L199*M199)),"") ->  | L199: =IF(E199+I199=0,"",L198+E199-I199) ->  | M199: =IF(OR(E199+I199<0,B199=""),"",IF(E199>0,K199/L199,IF(L199=0,0,M198))) -> 
A200: 195 | D200: =IFERROR(VLOOKUP(C200,'سكر خام'!$F$4:$L$1000,2,0)+VLOOKUP(C200,'كيس هاي 1 ك'!$F$4:$L$1000,2,0)+VLOOKUP(C200,'باكيتة هاي'!$F$4:$K$1000,2,0),0) -> 0
... 161 more rows

Sheet ارز معبا كيلو
A1: كارت صنف ( ارز معبا كيلو )
K2: =LOOKUP(1E+24,K:K) -> 289.1609195 | L2: =LOOKUP(1E+24,L:L) -> 5 | M2: =LOOKUP(1E+24,M:M) -> 57.83218391
A3: م | B3: التاريخ | C3: وارد | H3: منصرف | K3: رصيد
C4: رقم التشغيلة | D4: اجمالى | E4: كمية | F4: سعر | H4: اجمالى | I4: كمية | J4: سعر | K4: اجمالى | L4: كمية | M4: سعر
D5: =SUM(D6:D16) -> 5869.966667 | E5: =SUM(E6:E16) -> 101.5 | F5: =D5/E5 -> 57.83218391 | G5: رقم مستند الصرف | H5: =SUM(H6:H16) -> 5580.805747 | I5: =SUM(I6:I16) -> 96.5 | J5: =H5/I5 -> 57.83218391
A6: 1 | B6: 2021-01-05 | C6: ت ز 1 | D6: =IFERROR(VLOOKUP(C6,'ارز خام'!$F$4:$L$1000,2,0)+VLOOKUP(C6,'كيس ليمينيشن 1 ك'!$F$4:$L$1000,2,0)+VLOOKUP(C6,'باكيتة نايلون'!$F$4:$K$1000,2,0),0) -> 5869.966667 | E6: 101.5 | F6: =IFERROR(IF(OR(D6="",E6=""),"",D6/E6),0) -> 57.83218391 | H6: 0 | I6: 0 | J6: 0 | K6: =D6 -> 5869.966667 | L6: =E6 -> 101.5 | M6: =IFERROR(K6/L6,"") -> 57.83218391
A7: 2 | B7: 2021-01-18 | C7: 0 | D7: =IFERROR(VLOOKUP(C7,'ارز خام'!$F$4:$L$1000,2,0)+VLOOKUP(C7,'كيس ليمينيشن 1 ك'!$F$4:$L$1000,2,0)+VLOOKUP(C7,'باكيتة نايلون'!$F$4:$K$1000,2,0),0) -> 0 | E7: 0 | F7: 0 | G7: ف5 | H7: =IF(I7="","",I7*J7) -> 289.1609195 | I7: 5 | J7: =IF(B7="","",IF(E7>0,0,M6)) -> 57.83218391 | K7: =IFERROR(IF(B7="","",IF(E7>0,K6+D7,L7*M7)),"") -> 5580.805747 | L7: =IF(E7+I7=0,"",L6+E7-I7) -> 96.5 | M7: =IF(OR(E7+I7<0,B7=""),"",IF(E7>0,K7/L7,IF(L39=0,0,M6))) -> 57.83218391
A8: 3 | B8: 2021-01-23 | C8: 0 | D8: =IFERROR(VLOOKUP(C8,'ارز خام'!$F$4:$L$1000,2,0)+VLOOKUP(C8,'كيس ليمينيشن 1 ك'!$F$4:$L$1000,2,0)+VLOOKUP(C8,'باكيتة نايلون'!$F$4:$K$1000,2,0),0) -> 0 | E8: 0 | F8: 0 | G8: ف9 | H8: 1156.643678 | I8: 20 | J8: 57.83218391 | K8: 4424.162069 | L8: 76.5 | M8: =IF(OR(E8+I8<0,B8=""),"",IF(E8>0,K8/L8,IF(L40=0,0,M7))) -> 57.83218391
A9: 4 | B9: 2021-01-23 | C9: 0 | D9: =IFERROR(VLOOKUP(C9,'ارز خام'!$F$4:$L$1000,2,0)+VLOOKUP(C9,'كيس ليمينيشن 1 ك'!$F$4:$L$1000,2,0)+VLOOKUP(C9,'باكيتة نايلون'!$F$4:$K$1000,2,0),0) -> 0 | E9: 0 | F9: 0 | G9: ف10 | H9: 578.3218391 | I9: 10 | J9: 57.83218391 | K9: 3845.84023 | L9: 66.5 | M9: 57.83218391
A10: 5 | B10: 2021-01-24 | C10: 0 | D10: =IFERROR(VLOOKUP(C10,'ارز خام'!$F$4:$L$1000,2,0)+VLOOKUP(C10,'كيس ليمينيشن 1 ك'!$F$4:$L$1000,2,0)+VLOOKUP(C10,'باكيتة نايلون'!$F$4:$K$1000,2,0),0) -> 0 | E10: 0 | F10: 0 | G10: ف12 | H10: 578.3218391 | I10: 10 | J10: 57.83218391 | K10: 3267.518391 | L10: 56.5 | M10: 57.83218391
A11: 9 | B11: 2021-01-24 | C11: 0 | D11: =IFERROR(VLOOKUP(C11,'ارز خام'!$F$4:$L$1000,2,0)+VLOOKUP(C11,'كيس ليمينيشن 1 ك'!$F$4:$L$1000,2,0)+VLOOKUP(C11,'باكيتة نايلون'!$F$4:$K$1000,2,0),0) -> 0 | E11: 0 | F11: 0 | G11: ف13 | H11: 289.1609195 | I11: 5 | J11: 57.83218391 | K11: 2978.357471 | L11: 51.5 | M11: 57.83218391
A12: 6 | B12: 2021-01-27 | C12: 0 | D12: =IFERROR(VLOOKUP(C12,'ارز خام'!$F$4:$L$1000,2,0)+VLOOKUP(C12,'كيس ليمينيشن 1 ك'!$F$4:$L$1000,2,0)+VLOOKUP(C12,'باكيتة نايلون'!$F$4:$K$1000,2,0),0) -> 0 | E12: 0 | F12: 0 | G12: ف24 | H12: 289.1609195 | I12: 5 | J12: 57.83218391 | K12: 2689.196552 | L12: 46.5 | M12: 57.83218391
A13: 7 | B13: 2021-01-28 | C13: 0 | D13: =IFERROR(VLOOKUP(C13,'ارز خام'!$F$4:$L$1000,2,0)+VLOOKUP(C13,'كيس ليمينيشن 1 ك'!$F$4:$L$1000,2,0)+VLOOKUP(C13,'باكيتة نايلون'!$F$4:$K$1000,2,0),0) -> 0 | E13: 0 | F13: 0 | G13: ف28 | H13: 57.83218391 | I13: 1 | J13: 57.83218391 | K13: 2631.364368 | L13: 45.5 | M13: 57.83218391
A14: 10 | B14: 2021-01-28 | C14: 0 | D14: =IFERROR(VLOOKUP(C14,'ارز خام'!$F$4:$L$1000,2,0)+VLOOKUP(C14,'كيس ليمينيشن 1 ك'!$F$4:$L$1000,2,0)+VLOOKUP(C14,'باكيتة نايلون'!$F$4:$K$1000,2,0),0) -> 0 | E14: 0 | F14: 0 | G14: ف31 | H14: 1156.643678 | I14: 20 | J14: 57.83218391 | K14: 1474.72069 | L14: 25.5 | M14: 57.83218391
A15: 11 | B15: 2021-01-31 | C15: 0 | D15: =IFERROR(VLOOKUP(C15,'ارز خام'!$F$4:$L$1000,2,0)+VLOOKUP(C15,'كيس ليمينيشن 1 ك'!$F$4:$L$1000,2,0)+VLOOKUP(C15,'باكيتة نايلون'!$F$4:$K$1000,2,0),0) -> 0 | E15: 0 | F15: 0 | G15: ف34 | H15: 1185.55977 | I15: 20.5 | J15: 57.83218391 | K15: 289.1609195 | L15: 5 | M15: 57.83218391
A16: 12 | D16: =IFERROR(VLOOKUP(C16,'ارز خام'!$F$4:$L$1000,2,0)+VLOOKUP(C16,'كيس ليمينيشن 1 ك'!$F$4:$L$1000,2,0)+VLOOKUP(C16,'باكيتة نايلون'!$F$4:$K$1000,2,0),0) -> 0
A17: 13 | D17: =IFERROR(VLOOKUP(C17,'ارز خام'!$F$4:$L$1000,2,0)+VLOOKUP(C17,'كيس ليمينيشن 1 ك'!$F$4:$L$1000,2,0)+VLOOKUP(C17,'باكيتة نايلون'!$F$4:$K$1000,2,0),0) -> 0
A18: 14 | D18: =IFERROR(VLOOKUP(C18,'ارز خام'!$F$4:$L$1000,2,0)+VLOOKUP(C18,'كيس ليمينيشن 1 ك'!$F$4:$L$1000,2,0)+VLOOKUP(C18,'باكيتة نايلون'!$F$4:$K$1000,2,0),0) -> 0
A19: 15 | D19: =IFERROR(VLOOKUP(C19,'ارز خام'!$F$4:$L$1000,2,0)+VLOOKUP(C19,'كيس ليمينيشن 1 ك'!$F$4:$L$1000,2,0)+VLOOKUP(C19,'باكيتة نايلون'!$F$4:$K$1000,2,0),0) -> 0
A20: 16 | D20: =IFERROR(VLOOKUP(C20,'ارز خام'!$F$4:$L$1000,2,0)+VLOOKUP(C20,'كيس ليمينيشن 1 ك'!$F$4:$L$1000,2,0)+VLOOKUP(C20,'باكيتة نايلون'!$F$4:$K$1000,2,0),0) -> 0
A21: 17 | D21: =IFERROR(VLOOKUP(C21,'ارز خام'!$F$4:$L$1000,2,0)+VLOOKUP(C21,'كيس ليمينيشن 1 ك'!$F$4:$L$1000,2,0)+VLOOKUP(C21,'باكيتة نايلون'!$F$4:$K$1000,2,0),0) -> 0
A22: 18 | D22: =IFERROR(VLOOKUP(C22,'ارز خام'!$F$4:$L$1000,2,0)+VLOOKUP(C22,'كيس ليمينيشن 1 ك'!$F$4:$L$1000,2,0)+VLOOKUP(C22,'باكيتة نايلون'!$F$4:$K$1000,2,0),0) -> 0
A23: 19 | D23: =IFERROR(VLOOKUP(C23,'ارز خام'!$F$4:$L$1000,2,0)+VLOOKUP(C23,'كيس ليمينيشن 1 ك'!$F$4:$L$1000,2,0)+VLOOKUP(C23,'باكيتة نايلون'!$F$4:$K$1000,2,0),0) -> 0
A24: 20 | D24: =IFERROR(VLOOKUP(C24,'ارز خام'!$F$4:$L$1000,2,0)+VLOOKUP(C24,'كيس ليمينيشن 1 ك'!$F$4:$L$1000,2,0)+VLOOKUP(C24,'باكيتة نايلون'!$F$4:$K$1000,2,0),0) -> 0
A25: 21 | D25: =IFERROR(VLOOKUP(C25,'ارز خام'!$F$4:$L$1000,2,0)+VLOOKUP(C25,'كيس ليمينيشن 1 ك'!$F$4:$L$1000,2,0)+VLOOKUP(C25,'باكيتة نايلون'!$F$4:$K$1000,2,0),0) -> 0
A26: 22 | D26: =IFERROR(VLOOKUP(C26,'ارز خام'!$F$4:$L$1000,2,0)+VLOOKUP(C26,'كيس ليمينيشن 1 ك'!$F$4:$L$1000,2,0)+VLOOKUP(C26,'باكيتة نايلون'!$F$4:$K$1000,2,0),0) -> 0
A27: 23 | D27: =IFERROR(VLOOKUP(C27,'ارز خام'!$F$4:$L$1000,2,0)+VLOOKUP(C27,'كيس ليمينيشن 1 ك'!$F$4:$L$1000,2,0)+VLOOKUP(C27,'باكيتة نايلون'!$F$4:$K$1000,2,0),0) -> 0
A28: 24 | D28: =IFERROR(VLOOKUP(C28,'ارز خام'!$F$4:$L$1000,2,0)+VLOOKUP(C28,'كيس ليمينيشن 1 ك'!$F$4:$L$1000,2,0)+VLOOKUP(C28,'باكيتة نايلون'!$F$4:$K$1000,2,0),0) -> 0
A29: 25 | D29: =IFERROR(VLOOKUP(C29,'ارز خام'!$F$4:$L$1000,2,0)+VLOOKUP(C29,'كيس ليمينيشن 1 ك'!$F$4:$L$1000,2,0)+VLOOKUP(C29,'باكيتة نايلون'!$F$4:$K$1000,2,0),0) -> 0
A30: 26 | D30: =IFERROR(VLOOKUP(C30,'ارز خام'!$F$4:$L$1000,2,0)+VLOOKUP(C30,'كيس ليمينيشن 1 ك'!$F$4:$L$1000,2,0)+VLOOKUP(C30,'باكيتة نايلون'!$F$4:$K$1000,2,0),0) -> 0
A31: 27 | D31: =IFERROR(VLOOKUP(C31,'ارز خام'!$F$4:$L$1000,2,0)+VLOOKUP(C31,'كيس ليمينيشن 1 ك'!$F$4:$L$1000,2,0)+VLOOKUP(C31,'باكيتة نايلون'!$F$4:$K$1000,2,0),0) -> 0
A32: 28 | D32: =IFERROR(VLOOKUP(C32,'ارز خام'!$F$4:$L$1000,2,0)+VLOOKUP(C32,'كيس ليمينيشن 1 ك'!$F$4:$L$1000,2,0)+VLOOKUP(C32,'باكيتة نايلون'!$F$4:$K$1000,2,0),0) -> 0
A33: 29 | D33: =IFERROR(VLOOKUP(C33,'ارز خام'!$F$4:$L$1000,2,0)+VLOOKUP(C33,'كيس ليمينيشن 1 ك'!$F$4:$L$1000,2,0)+VLOOKUP(C33,'باكيتة نايلون'!$F$4:$K$1000,2,0),0) -> 0
A34: 30 | D34: =IFERROR(VLOOKUP(C34,'ارز خام'!$F$4:$L$1000,2,0)+VLOOKUP(C34,'كيس ليمينيشن 1 ك'!$F$4:$L$1000,2,0)+VLOOKUP(C34,'باكيتة نايلون'!$F$4:$K$1000,2,0),0) -> 0
A35: 31 | D35: =IFERROR(VLOOKUP(C35,'ارز خام'!$F$4:$L$1000,2,0)+VLOOKUP(C35,'كيس ليمينيشن 1 ك'!$F$4:$L$1000,2,0)+VLOOKUP(C35,'باكيتة نايلون'!$F$4:$K$1000,2,0),0) -> 0
A36: 32 | D36: =IFERROR(VLOOKUP(C36,'ارز خام'!$F$4:$L$1000,2,0)+VLOOKUP(C36,'كيس ليمينيشن 1 ك'!$F$4:$L$1000,2,0)+VLOOKUP(C36,'باكيتة نايلون'!$F$4:$K$1000,2,0),0) -> 0
A37: 33 | D37: =IFERROR(VLOOKUP(C37,'ارز خام'!$F$4:$L$1000,2,0)+VLOOKUP(C37,'كيس ليمينيشن 1 ك'!$F$4:$L$1000,2,0)+VLOOKUP(C37,'باكيتة نايلون'!$F$4:$K$1000,2,0),0) -> 0
A38: 34 | D38: =IFERROR(VLOOKUP(C38,'ارز خام'!$F$4:$L$1000,2,0)+VLOOKUP(C38,'كيس ليمينيشن 1 ك'!$F$4:$L$1000,2,0)+VLOOKUP(C38,'باكيتة نايلون'!$F$4:$K$1000,2,0),0) -> 0
A39: 35 | D39: =IFERROR(VLOOKUP(C39,'ارز خام'!$F$4:$L$1000,2,0)+VLOOKUP(C39,'كيس ليمينيشن 1 ك'!$F$4:$L$1000,2,0)+VLOOKUP(C39,'باكيتة نايلون'!$F$4:$K$1000,2,0),0) -> 0
A40: 8 | D40: =IFERROR(VLOOKUP(C40,'ارز خام'!$F$4:$L$1000,2,0)+VLOOKUP(C40,'كيس ليمينيشن 1 ك'!$F$4:$L$1000,2,0)+VLOOKUP(C40,'باكيتة نايلون'!$F$4:$K$1000,2,0),0) -> 0
A41: 36 | D41: =IFERROR(VLOOKUP(C41,'ارز خام'!$F$4:$L$1000,2,0)+VLOOKUP(C41,'كيس ليمينيشن 1 ك'!$F$4:$L$1000,2,0)+VLOOKUP(C41,'باكيتة نايلون'!$F$4:$K$1000,2,0),0) -> 0
A42: 37 | D42: =IFERROR(VLOOKUP(C42,'ارز خام'!$F$4:$L$1000,2,0)+VLOOKUP(C42,'كيس ليمينيشن 1 ك'!$F$4:$L$1000,2,0)+VLOOKUP(C42,'باكيتة نايلون'!$F$4:$K$1000,2,0),0) -> 0
A43: 38 | D43: =IFERROR(VLOOKUP(C43,'ارز خام'!$F$4:$L$1000,2,0)+VLOOKUP(C43,'كيس ليمينيشن 1 ك'!$F$4:$L$1000,2,0)+VLOOKUP(C43,'باكيتة نايلون'!$F$4:$K$1000,2,0),0) -> 0
A44: 39 | D44: =IFERROR(VLOOKUP(C44,'ارز خام'!$F$4:$L$1000,2,0)+VLOOKUP(C44,'كيس ليمينيشن 1 ك'!$F$4:$L$1000,2,0)+VLOOKUP(C44,'باكيتة نايلون'!$F$4:$K$1000,2,0),0) -> 0
A45: 40 | D45: =IFERROR(VLOOKUP(C45,'ارز خام'!$F$4:$L$1000,2,0)+VLOOKUP(C45,'كيس ليمينيشن 1 ك'!$F$4:$L$1000,2,0)+VLOOKUP(C45,'باكيتة نايلون'!$F$4:$K$1000,2,0),0) -> 0
A46: 41 | D46: =IFERROR(VLOOKUP(C46,'ارز خام'!$F$4:$L$1000,2,0)+VLOOKUP(C46,'كيس ليمينيشن 1 ك'!$F$4:$L$1000,2,0)+VLOOKUP(C46,'باكيتة نايلون'!$F$4:$K$1000,2,0),0) -> 0
A47: 42 | D47: =IFERROR(VLOOKUP(C47,'ارز خام'!$F$4:$L$1000,2,0)+VLOOKUP(C47,'كيس ليمينيشن 1 ك'!$F$4:$L$1000,2,0)+VLOOKUP(C47,'باكيتة نايلون'!$F$4:$K$1000,2,0),0) -> 0
A48: 43 | D48: =IFERROR(VLOOKUP(C48,'ارز خام'!$F$4:$L$1000,2,0)+VLOOKUP(C48,'كيس ليمينيشن 1 ك'!$F$4:$L$1000,2,0)+VLOOKUP(C48,'باكيتة نايلون'!$F$4:$K$1000,2,0),0) -> 0
A49: 44 | D49: =IFERROR(VLOOKUP(C49,'ارز خام'!$F$4:$L$1000,2,0)+VLOOKUP(C49,'كيس ليمينيشن 1 ك'!$F$4:$L$1000,2,0)+VLOOKUP(C49,'باكيتة نايلون'!$F$4:$K$1000,2,0),0) -> 0
A50: 45 | D50: =IFERROR(VLOOKUP(C50,'ارز خام'!$F$4:$L$1000,2,0)+VLOOKUP(C50,'كيس ليمينيشن 1 ك'!$F$4:$L$1000,2,0)+VLOOKUP(C50,'باكيتة نايلون'!$F$4:$K$1000,2,0),0) -> 0
A51: 46 | D51: =IFERROR(VLOOKUP(C51,'ارز خام'!$F$4:$L$1000,2,0)+VLOOKUP(C51,'كيس ليمينيشن 1 ك'!$F$4:$L$1000,2,0)+VLOOKUP(C51,'باكيتة نايلون'!$F$4:$K$1000,2,0),0) -> 0
A52: 47 | D52: =IFERROR(VLOOKUP(C52,'ارز خام'!$F$4:$L$1000,2,0)+VLOOKUP(C52,'كيس ليمينيشن 1 ك'!$F$4:$L$1000,2,0)+VLOOKUP(C52,'باكيتة نايلون'!$F$4:$K$1000,2,0),0) -> 0
A53: 48 | D53: =IFERROR(VLOOKUP(C53,'ارز خام'!$F$4:$L$1000,2,0)+VLOOKUP(C53,'كيس ليمينيشن 1 ك'!$F$4:$L$1000,2,0)+VLOOKUP(C53,'باكيتة نايلون'!$F$4:$K$1000,2,0),0) -> 0
A54: 49 | D54: =IFERROR(VLOOKUP(C54,'ارز خام'!$F$4:$L$1000,2,0)+VLOOKUP(C54,'كيس ليمينيشن 1 ك'!$F$4:$L$1000,2,0)+VLOOKUP(C54,'باكيتة نايلون'!$F$4:$K$1000,2,0),0) -> 0
A55: 50 | D55: =IFERROR(VLOOKUP(C55,'ارز خام'!$F$4:$L$1000,2,0)+VLOOKUP(C55,'كيس ليمينيشن 1 ك'!$F$4:$L$1000,2,0)+VLOOKUP(C55,'باكيتة نايلون'!$F$4:$K$1000,2,0),0) -> 0
A56: 51 | D56: =IFERROR(VLOOKUP(C56,'ارز خام'!$F$4:$L$1000,2,0)+VLOOKUP(C56,'كيس ليمينيشن 1 ك'!$F$4:$L$1000,2,0)+VLOOKUP(C56,'باكيتة نايلون'!$F$4:$K$1000,2,0),0) -> 0
A57: 52 | D57: =IFERROR(VLOOKUP(C57,'ارز خام'!$F$4:$L$1000,2,0)+VLOOKUP(C57,'كيس ليمينيشن 1 ك'!$F$4:$L$1000,2,0)+VLOOKUP(C57,'باكيتة نايلون'!$F$4:$K$1000,2,0),0) -> 0
A58: 53 | D58: =IFERROR(VLOOKUP(C58,'ارز خام'!$F$4:$L$1000,2,0)+VLOOKUP(C58,'كيس ليمينيشن 1 ك'!$F$4:$L$1000,2,0)+VLOOKUP(C58,'باكيتة نايلون'!$F$4:$K$1000,2,0),0) -> 0
A59: 54 | D59: =IFERROR(VLOOKUP(C59,'ارز خام'!$F$4:$L$1000,2,0)+VLOOKUP(C59,'كيس ليمينيشن 1 ك'!$F$4:$L$1000,2,0)+VLOOKUP(C59,'باكيتة نايلون'!$F$4:$K$1000,2,0),0) -> 0
A60: 55 | D60: =IFERROR(VLOOKUP(C60,'ارز خام'!$F$4:$L$1000,2,0)+VLOOKUP(C60,'كيس ليمينيشن 1 ك'!$F$4:$L$1000,2,0)+VLOOKUP(C60,'باكيتة نايلون'!$F$4:$K$1000,2,0),0) -> 0
A61: 56 | D61: =IFERROR(VLOOKUP(C61,'ارز خام'!$F$4:$L$1000,2,0)+VLOOKUP(C61,'كيس ليمينيشن 1 ك'!$F$4:$L$1000,2,0)+VLOOKUP(C61,'باكيتة نايلون'!$F$4:$K$1000,2,0),0) -> 0
A62: 57 | D62: =IFERROR(VLOOKUP(C62,'ارز خام'!$F$4:$L$1000,2,0)+VLOOKUP(C62,'كيس ليمينيشن 1 ك'!$F$4:$L$1000,2,0)+VLOOKUP(C62,'باكيتة نايلون'!$F$4:$K$1000,2,0),0) -> 0
A63: 58 | D63: =IFERROR(VLOOKUP(C63,'ارز خام'!$F$4:$L$1000,2,0)+VLOOKUP(C63,'كيس ليمينيشن 1 ك'!$F$4:$L$1000,2,0)+VLOOKUP(C63,'باكيتة نايلون'!$F$4:$K$1000,2,0),0) -> 0
A64: 59 | D64: =IFERROR(VLOOKUP(C64,'ارز خام'!$F$4:$L$1000,2,0)+VLOOKUP(C64,'كيس ليمينيشن 1 ك'!$F$4:$L$1000,2,0)+VLOOKUP(C64,'باكيتة نايلون'!$F$4:$K$1000,2,0),0) -> 0
A65: 60 | D65: =IFERROR(VLOOKUP(C65,'ارز خام'!$F$4:$L$1000,2,0)+VLOOKUP(C65,'كيس ليمينيشن 1 ك'!$F$4:$L$1000,2,0)+VLOOKUP(C65,'باكيتة نايلون'!$F$4:$K$1000,2,0),0) -> 0
A66: 61 | D66: =IFERROR(VLOOKUP(C66,'ارز خام'!$F$4:$L$1000,2,0)+VLOOKUP(C66,'كيس ليمينيشن 1 ك'!$F$4:$L$1000,2,0)+VLOOKUP(C66,'باكيتة نايلون'!$F$4:$K$1000,2,0),0) -> 0
A67: 62 | D67: =IFERROR(VLOOKUP(C67,'ارز خام'!$F$4:$L$1000,2,0)+VLOOKUP(C67,'كيس ليمينيشن 1 ك'!$F$4:$L$1000,2,0)+VLOOKUP(C67,'باكيتة نايلون'!$F$4:$K$1000,2,0),0) -> 0
A68: 63 | D68: =IFERROR(VLOOKUP(C68,'ارز خام'!$F$4:$L$1000,2,0)+VLOOKUP(C68,'كيس ليمينيشن 1 ك'!$F$4:$L$1000,2,0)+VLOOKUP(C68,'باكيتة نايلون'!$F$4:$K$1000,2,0),0) -> 0
A69: 64 | D69: =IFERROR(VLOOKUP(C69,'ارز خام'!$F$4:$L$1000,2,0)+VLOOKUP(C69,'كيس ليمينيشن 1 ك'!$F$4:$L$1000,2,0)+VLOOKUP(C69,'باكيتة نايلون'!$F$4:$K$1000,2,0),0) -> 0
A70: 65 | D70: =IFERROR(VLOOKUP(C70,'ارز خام'!$F$4:$L$1000,2,0)+VLOOKUP(C70,'كيس ليمينيشن 1 ك'!$F$4:$L$1000,2,0)+VLOOKUP(C70,'باكيتة نايلون'!$F$4:$K$1000,2,0),0) -> 0 | F70: =IFERROR(IF(OR(D70="",E70=""),"",D70/E70),0) -> 
A71: 66 | D71: =IFERROR(VLOOKUP(C71,'ارز خام'!$F$4:$L$1000,2,0)+VLOOKUP(C71,'كيس ليمينيشن 1 ك'!$F$4:$L$1000,2,0)+VLOOKUP(C71,'باكيتة نايلون'!$F$4:$K$1000,2,0),0) -> 0 | H71: =IF(I71="","",I71*J71) ->  | J71: =IF(B71="","",IF(E71>0,0,M70)) ->  | K71: =IFERROR(IF(B71="","",IF(E71>0,K70+D71,L71*M71)),"") ->  | L71: =IF(E71+I71=0,"",L70+E71-I71) -> 
A72: 67 | D72: =IFERROR(VLOOKUP(C72,'ارز خام'!$F$4:$L$1000,2,0)+VLOOKUP(C72,'كيس ليمينيشن 1 ك'!$F$4:$L$1000,2,0)+VLOOKUP(C72,'باكيتة نايلون'!$F$4:$K$1000,2,0),0) -> 0 | M72: =IF(OR(E72+I72<0,B72=""),"",IF(E72>0,K72/L72,IF(L104=0,0,M71))) -> 
A73: 68 | D73: =IFERROR(VLOOKUP(C73,'ارز خام'!$F$4:$L$1000,2,0)+VLOOKUP(C73,'كيس ليمينيشن 1 ك'!$F$4:$L$1000,2,0)+VLOOKUP(C73,'باكيتة نايلون'!$F$4:$K$1000,2,0),0) -> 0
A74: 69 | D74: =IFERROR(VLOOKUP(C74,'ارز خام'!$F$4:$L$1000,2,0)+VLOOKUP(C74,'كيس ليمينيشن 1 ك'!$F$4:$L$1000,2,0)+VLOOKUP(C74,'باكيتة نايلون'!$F$4:$K$1000,2,0),0) -> 0
A75: 70 | D75: =IFERROR(VLOOKUP(C75,'ارز خام'!$F$4:$L$1000,2,0)+VLOOKUP(C75,'كيس ليمينيشن 1 ك'!$F$4:$L$1000,2,0)+VLOOKUP(C75,'باكيتة نايلون'!$F$4:$K$1000,2,0),0) -> 0
A76: 71 | D76: =IFERROR(VLOOKUP(C76,'ارز خام'!$F$4:$L$1000,2,0)+VLOOKUP(C76,'كيس ليمينيشن 1 ك'!$F$4:$L$1000,2,0)+VLOOKUP(C76,'باكيتة نايلون'!$F$4:$K$1000,2,0),0) -> 0
A77: 72 | D77: =IFERROR(VLOOKUP(C77,'ارز خام'!$F$4:$L$1000,2,0)+VLOOKUP(C77,'كيس ليمينيشن 1 ك'!$F$4:$L$1000,2,0)+VLOOKUP(C77,'باكيتة نايلون'!$F$4:$K$1000,2,0),0) -> 0
A78: 73 | D78: =IFERROR(VLOOKUP(C78,'ارز خام'!$F$4:$L$1000,2,0)+VLOOKUP(C78,'كيس ليمينيشن 1 ك'!$F$4:$L$1000,2,0)+VLOOKUP(C78,'باكيتة نايلون'!$F$4:$K$1000,2,0),0) -> 0
A79: 74 | D79: =IFERROR(VLOOKUP(C79,'ارز خام'!$F$4:$L$1000,2,0)+VLOOKUP(C79,'كيس ليمينيشن 1 ك'!$F$4:$L$1000,2,0)+VLOOKUP(C79,'باكيتة نايلون'!$F$4:$K$1000,2,0),0) -> 0
A80: 75 | D80: =IFERROR(VLOOKUP(C80,'ارز خام'!$F$4:$L$1000,2,0)+VLOOKUP(C80,'كيس ليمينيشن 1 ك'!$F$4:$L$1000,2,0)+VLOOKUP(C80,'باكيتة نايلون'!$F$4:$K$1000,2,0),0) -> 0
A81: 76 | D81: =IFERROR(VLOOKUP(C81,'ارز خام'!$F$4:$L$1000,2,0)+VLOOKUP(C81,'كيس ليمينيشن 1 ك'!$F$4:$L$1000,2,0)+VLOOKUP(C81,'باكيتة نايلون'!$F$4:$K$1000,2,0),0) -> 0
A82: 77 | D82: =IFERROR(VLOOKUP(C82,'ارز خام'!$F$4:$L$1000,2,0)+VLOOKUP(C82,'كيس ليمينيشن 1 ك'!$F$4:$L$1000,2,0)+VLOOKUP(C82,'باكيتة نايلون'!$F$4:$K$1000,2,0),0) -> 0
A83: 78 | D83: =IFERROR(VLOOKUP(C83,'ارز خام'!$F$4:$L$1000,2,0)+VLOOKUP(C83,'كيس ليمينيشن 1 ك'!$F$4:$L$1000,2,0)+VLOOKUP(C83,'باكيتة نايلون'!$F$4:$K$1000,2,0),0) -> 0
A84: 79 | D84: =IFERROR(VLOOKUP(C84,'ارز خام'!$F$4:$L$1000,2,0)+VLOOKUP(C84,'كيس ليمينيشن 1 ك'!$F$4:$L$1000,2,0)+VLOOKUP(C84,'باكيتة نايلون'!$F$4:$K$1000,2,0),0) -> 0
A85: 80 | D85: =IFERROR(VLOOKUP(C85,'ارز خام'!$F$4:$L$1000,2,0)+VLOOKUP(C85,'كيس ليمينيشن 1 ك'!$F$4:$L$1000,2,0)+VLOOKUP(C85,'باكيتة نايلون'!$F$4:$K$1000,2,0),0) -> 0
A86: 81 | D86: =IFERROR(VLOOKUP(C86,'ارز خام'!$F$4:$L$1000,2,0)+VLOOKUP(C86,'كيس ليمينيشن 1 ك'!$F$4:$L$1000,2,0)+VLOOKUP(C86,'باكيتة نايلون'!$F$4:$K$1000,2,0),0) -> 0
A87: 82 | D87: =IFERROR(VLOOKUP(C87,'ارز خام'!$F$4:$L$1000,2,0)+VLOOKUP(C87,'كيس ليمينيشن 1 ك'!$F$4:$L$1000,2,0)+VLOOKUP(C87,'باكيتة نايلون'!$F$4:$K$1000,2,0),0) -> 0
A88: 83 | D88: =IFERROR(VLOOKUP(C88,'ارز خام'!$F$4:$L$1000,2,0)+VLOOKUP(C88,'كيس ليمينيشن 1 ك'!$F$4:$L$1000,2,0)+VLOOKUP(C88,'باكيتة نايلون'!$F$4:$K$1000,2,0),0) -> 0
A89: 84 | D89: =IFERROR(VLOOKUP(C89,'ارز خام'!$F$4:$L$1000,2,0)+VLOOKUP(C89,'كيس ليمينيشن 1 ك'!$F$4:$L$1000,2,0)+VLOOKUP(C89,'باكيتة نايلون'!$F$4:$K$1000,2,0),0) -> 0
A90: 85 | D90: =IFERROR(VLOOKUP(C90,'ارز خام'!$F$4:$L$1000,2,0)+VLOOKUP(C90,'كيس ليمينيشن 1 ك'!$F$4:$L$1000,2,0)+VLOOKUP(C90,'باكيتة نايلون'!$F$4:$K$1000,2,0),0) -> 0
A91: 86 | D91: =IFERROR(VLOOKUP(C91,'ارز خام'!$F$4:$L$1000,2,0)+VLOOKUP(C91,'كيس ليمينيشن 1 ك'!$F$4:$L$1000,2,0)+VLOOKUP(C91,'باكيتة نايلون'!$F$4:$K$1000,2,0),0) -> 0
A92: 87 | D92: =IFERROR(VLOOKUP(C92,'ارز خام'!$F$4:$L$1000,2,0)+VLOOKUP(C92,'كيس ليمينيشن 1 ك'!$F$4:$L$1000,2,0)+VLOOKUP(C92,'باكيتة نايلون'!$F$4:$K$1000,2,0),0) -> 0
A93: 88 | D93: =IFERROR(VLOOKUP(C93,'ارز خام'!$F$4:$L$1000,2,0)+VLOOKUP(C93,'كيس ليمينيشن 1 ك'!$F$4:$L$1000,2,0)+VLOOKUP(C93,'باكيتة نايلون'!$F$4:$K$1000,2,0),0) -> 0
A94: 89 | D94: =IFERROR(VLOOKUP(C94,'ارز خام'!$F$4:$L$1000,2,0)+VLOOKUP(C94,'كيس ليمينيشن 1 ك'!$F$4:$L$1000,2,0)+VLOOKUP(C94,'باكيتة نايلون'!$F$4:$K$1000,2,0),0) -> 0
A95: 90 | D95: =IFERROR(VLOOKUP(C95,'ارز خام'!$F$4:$L$1000,2,0)+VLOOKUP(C95,'كيس ليمينيشن 1 ك'!$F$4:$L$1000,2,0)+VLOOKUP(C95,'باكيتة نايلون'!$F$4:$K$1000,2,0),0) -> 0
A96: 91 | D96: =IFERROR(VLOOKUP(C96,'ارز خام'!$F$4:$L$1000,2,0)+VLOOKUP(C96,'كيس ليمينيشن 1 ك'!$F$4:$L$1000,2,0)+VLOOKUP(C96,'باكيتة نايلون'!$F$4:$K$1000,2,0),0) -> 0
A97: 92 | D97: =IFERROR(VLOOKUP(C97,'ارز خام'!$F$4:$L$1000,2,0)+VLOOKUP(C97,'كيس ليمينيشن 1 ك'!$F$4:$L$1000,2,0)+VLOOKUP(C97,'باكيتة نايلون'!$F$4:$K$1000,2,0),0) -> 0
A98: 93 | D98: =IFERROR(VLOOKUP(C98,'ارز خام'!$F$4:$L$1000,2,0)+VLOOKUP(C98,'كيس ليمينيشن 1 ك'!$F$4:$L$1000,2,0)+VLOOKUP(C98,'باكيتة نايلون'!$F$4:$K$1000,2,0),0) -> 0
A99: 94 | D99: =IFERROR(VLOOKUP(C99,'ارز خام'!$F$4:$L$1000,2,0)+VLOOKUP(C99,'كيس ليمينيشن 1 ك'!$F$4:$L$1000,2,0)+VLOOKUP(C99,'باكيتة نايلون'!$F$4:$K$1000,2,0),0) -> 0
A100: 95 | D100: =IFERROR(VLOOKUP(C100,'ارز خام'!$F$4:$L$1000,2,0)+VLOOKUP(C100,'كيس ليمينيشن 1 ك'!$F$4:$L$1000,2,0)+VLOOKUP(C100,'باكيتة نايلون'!$F$4:$K$1000,2,0),0) -> 0
A101: 96 | D101: =IFERROR(VLOOKUP(C101,'ارز خام'!$F$4:$L$1000,2,0)+VLOOKUP(C101,'كيس ليمينيشن 1 ك'!$F$4:$L$1000,2,0)+VLOOKUP(C101,'باكيتة نايلون'!$F$4:$K$1000,2,0),0) -> 0
A102: 97 | D102: =IFERROR(VLOOKUP(C102,'ارز خام'!$F$4:$L$1000,2,0)+VLOOKUP(C102,'كيس ليمينيشن 1 ك'!$F$4:$L$1000,2,0)+VLOOKUP(C102,'باكيتة نايلون'!$F$4:$K$1000,2,0),0) -> 0
A103: 98 | D103: =IFERROR(VLOOKUP(C103,'ارز خام'!$F$4:$L$1000,2,0)+VLOOKUP(C103,'كيس ليمينيشن 1 ك'!$F$4:$L$1000,2,0)+VLOOKUP(C103,'باكيتة نايلون'!$F$4:$K$1000,2,0),0) -> 0
A104: 99 | D104: =IFERROR(VLOOKUP(C104,'ارز خام'!$F$4:$L$1000,2,0)+VLOOKUP(C104,'كيس ليمينيشن 1 ك'!$F$4:$L$1000,2,0)+VLOOKUP(C104,'باكيتة نايلون'!$F$4:$K$1000,2,0),0) -> 0
A105: 100 | D105: =IFERROR(VLOOKUP(C105,'ارز خام'!$F$4:$L$1000,2,0)+VLOOKUP(C105,'كيس ليمينيشن 1 ك'!$F$4:$L$1000,2,0)+VLOOKUP(C105,'باكيتة نايلون'!$F$4:$K$1000,2,0),0) -> 0
A106: 101 | D106: =IFERROR(VLOOKUP(C106,'ارز خام'!$F$4:$L$1000,2,0)+VLOOKUP(C106,'كيس ليمينيشن 1 ك'!$F$4:$L$1000,2,0)+VLOOKUP(C106,'باكيتة نايلون'!$F$4:$K$1000,2,0),0) -> 0
A107: 102 | D107: =IFERROR(VLOOKUP(C107,'ارز خام'!$F$4:$L$1000,2,0)+VLOOKUP(C107,'كيس ليمينيشن 1 ك'!$F$4:$L$1000,2,0)+VLOOKUP(C107,'باكيتة نايلون'!$F$4:$K$1000,2,0),0) -> 0
A108: 103 | D108: =IFERROR(VLOOKUP(C108,'ارز خام'!$F$4:$L$1000,2,0)+VLOOKUP(C108,'كيس ليمينيشن 1 ك'!$F$4:$L$1000,2,0)+VLOOKUP(C108,'باكيتة نايلون'!$F$4:$K$1000,2,0),0) -> 0
A109: 104 | D109: =IFERROR(VLOOKUP(C109,'ارز خام'!$F$4:$L$1000,2,0)+VLOOKUP(C109,'كيس ليمينيشن 1 ك'!$F$4:$L$1000,2,0)+VLOOKUP(C109,'باكيتة نايلون'!$F$4:$K$1000,2,0),0) -> 0
A110: 105 | D110: =IFERROR(VLOOKUP(C110,'ارز خام'!$F$4:$L$1000,2,0)+VLOOKUP(C110,'كيس ليمينيشن 1 ك'!$F$4:$L$1000,2,0)+VLOOKUP(C110,'باكيتة نايلون'!$F$4:$K$1000,2,0),0) -> 0
A111: 106 | D111: =IFERROR(VLOOKUP(C111,'ارز خام'!$F$4:$L$1000,2,0)+VLOOKUP(C111,'كيس ليمينيشن 1 ك'!$F$4:$L$1000,2,0)+VLOOKUP(C111,'باكيتة نايلون'!$F$4:$K$1000,2,0),0) -> 0
A112: 107 | D112: =IFERROR(VLOOKUP(C112,'ارز خام'!$F$4:$L$1000,2,0)+VLOOKUP(C112,'كيس ليمينيشن 1 ك'!$F$4:$L$1000,2,0)+VLOOKUP(C112,'باكيتة نايلون'!$F$4:$K$1000,2,0),0) -> 0
A113: 108 | D113: =IFERROR(VLOOKUP(C113,'ارز خام'!$F$4:$L$1000,2,0)+VLOOKUP(C113,'كيس ليمينيشن 1 ك'!$F$4:$L$1000,2,0)+VLOOKUP(C113,'باكيتة نايلون'!$F$4:$K$1000,2,0),0) -> 0
A114: 109 | D114: =IFERROR(VLOOKUP(C114,'ارز خام'!$F$4:$L$1000,2,0)+VLOOKUP(C114,'كيس ليمينيشن 1 ك'!$F$4:$L$1000,2,0)+VLOOKUP(C114,'باكيتة نايلون'!$F$4:$K$1000,2,0),0) -> 0
A115: 110 | D115: =IFERROR(VLOOKUP(C115,'ارز خام'!$F$4:$L$1000,2,0)+VLOOKUP(C115,'كيس ليمينيشن 1 ك'!$F$4:$L$1000,2,0)+VLOOKUP(C115,'باكيتة نايلون'!$F$4:$K$1000,2,0),0) -> 0
A116: 111 | D116: =IFERROR(VLOOKUP(C116,'ارز خام'!$F$4:$L$1000,2,0)+VLOOKUP(C116,'كيس ليمينيشن 1 ك'!$F$4:$L$1000,2,0)+VLOOKUP(C116,'باكيتة نايلون'!$F$4:$K$1000,2,0),0) -> 0
A117: 112 | D117: =IFERROR(VLOOKUP(C117,'ارز خام'!$F$4:$L$1000,2,0)+VLOOKUP(C117,'كيس ليمينيشن 1 ك'!$F$4:$L$1000,2,0)+VLOOKUP(C117,'باكيتة نايلون'!$F$4:$K$1000,2,0),0) -> 0
A118: 113 | D118: =IFERROR(VLOOKUP(C118,'ارز خام'!$F$4:$L$1000,2,0)+VLOOKUP(C118,'كيس ليمينيشن 1 ك'!$F$4:$L$1000,2,0)+VLOOKUP(C118,'باكيتة نايلون'!$F$4:$K$1000,2,0),0) -> 0
A119: 114 | D119: =IFERROR(VLOOKUP(C119,'ارز خام'!$F$4:$L$1000,2,0)+VLOOKUP(C119,'كيس ليمينيشن 1 ك'!$F$4:$L$1000,2,0)+VLOOKUP(C119,'باكيتة نايلون'!$F$4:$K$1000,2,0),0) -> 0
A120: 115 | D120: =IFERROR(VLOOKUP(C120,'ارز خام'!$F$4:$L$1000,2,0)+VLOOKUP(C120,'كيس ليمينيشن 1 ك'!$F$4:$L$1000,2,0)+VLOOKUP(C120,'باكيتة نايلون'!$F$4:$K$1000,2,0),0) -> 0
A121: 116 | D121: =IFERROR(VLOOKUP(C121,'ارز خام'!$F$4:$L$1000,2,0)+VLOOKUP(C121,'كيس ليمينيشن 1 ك'!$F$4:$L$1000,2,0)+VLOOKUP(C121,'باكيتة نايلون'!$F$4:$K$1000,2,0),0) -> 0
A122: 117 | D122: =IFERROR(VLOOKUP(C122,'ارز خام'!$F$4:$L$1000,2,0)+VLOOKUP(C122,'كيس ليمينيشن 1 ك'!$F$4:$L$1000,2,0)+VLOOKUP(C122,'باكيتة نايلون'!$F$4:$K$1000,2,0),0) -> 0
A123: 118 | D123: =IFERROR(VLOOKUP(C123,'ارز خام'!$F$4:$L$1000,2,0)+VLOOKUP(C123,'كيس ليمينيشن 1 ك'!$F$4:$L$1000,2,0)+VLOOKUP(C123,'باكيتة نايلون'!$F$4:$K$1000,2,0),0) -> 0
A124: 119 | D124: =IFERROR(VLOOKUP(C124,'ارز خام'!$F$4:$L$1000,2,0)+VLOOKUP(C124,'كيس ليمينيشن 1 ك'!$F$4:$L$1000,2,0)+VLOOKUP(C124,'باكيتة نايلون'!$F$4:$K$1000,2,0),0) -> 0
A125: 120 | D125: =IFERROR(VLOOKUP(C125,'ارز خام'!$F$4:$L$1000,2,0)+VLOOKUP(C125,'كيس ليمينيشن 1 ك'!$F$4:$L$1000,2,0)+VLOOKUP(C125,'باكيتة نايلون'!$F$4:$K$1000,2,0),0) -> 0
A126: 121 | D126: =IFERROR(VLOOKUP(C126,'ارز خام'!$F$4:$L$1000,2,0)+VLOOKUP(C126,'كيس ليمينيشن 1 ك'!$F$4:$L$1000,2,0)+VLOOKUP(C126,'باكيتة نايلون'!$F$4:$K$1000,2,0),0) -> 0
A127: 122 | D127: =IFERROR(VLOOKUP(C127,'ارز خام'!$F$4:$L$1000,2,0)+VLOOKUP(C127,'كيس ليمينيشن 1 ك'!$F$4:$L$1000,2,0)+VLOOKUP(C127,'باكيتة نايلون'!$F$4:$K$1000,2,0),0) -> 0
A128: 123 | D128: =IFERROR(VLOOKUP(C128,'ارز خام'!$F$4:$L$1000,2,0)+VLOOKUP(C128,'كيس ليمينيشن 1 ك'!$F$4:$L$1000,2,0)+VLOOKUP(C128,'باكيتة نايلون'!$F$4:$K$1000,2,0),0) -> 0
A129: 124 | D129: =IFERROR(VLOOKUP(C129,'ارز خام'!$F$4:$L$1000,2,0)+VLOOKUP(C129,'كيس ليمينيشن 1 ك'!$F$4:$L$1000,2,0)+VLOOKUP(C129,'باكيتة نايلون'!$F$4:$K$1000,2,0),0) -> 0
A130: 125 | D130: =IFERROR(VLOOKUP(C130,'ارز خام'!$F$4:$L$1000,2,0)+VLOOKUP(C130,'كيس ليمينيشن 1 ك'!$F$4:$L$1000,2,0)+VLOOKUP(C130,'باكيتة نايلون'!$F$4:$K$1000,2,0),0) -> 0
A131: 126 | D131: =IFERROR(VLOOKUP(C131,'ارز خام'!$F$4:$L$1000,2,0)+VLOOKUP(C131,'كيس ليمينيشن 1 ك'!$F$4:$L$1000,2,0)+VLOOKUP(C131,'باكيتة نايلون'!$F$4:$K$1000,2,0),0) -> 0
A132: 127 | D132: =IFERROR(VLOOKUP(C132,'ارز خام'!$F$4:$L$1000,2,0)+VLOOKUP(C132,'كيس ليمينيشن 1 ك'!$F$4:$L$1000,2,0)+VLOOKUP(C132,'باكيتة نايلون'!$F$4:$K$1000,2,0),0) -> 0
A133: 128 | D133: =IFERROR(VLOOKUP(C133,'ارز خام'!$F$4:$L$1000,2,0)+VLOOKUP(C133,'كيس ليمينيشن 1 ك'!$F$4:$L$1000,2,0)+VLOOKUP(C133,'باكيتة نايلون'!$F$4:$K$1000,2,0),0) -> 0
A134: 129 | D134: =IFERROR(VLOOKUP(C134,'ارز خام'!$F$4:$L$1000,2,0)+VLOOKUP(C134,'كيس ليمينيشن 1 ك'!$F$4:$L$1000,2,0)+VLOOKUP(C134,'باكيتة نايلون'!$F$4:$K$1000,2,0),0) -> 0 | F134: =IFERROR(IF(OR(D134="",E134=""),"",D134/E134),0) -> 
A135: 130 | D135: =IFERROR(VLOOKUP(C135,'ارز خام'!$F$4:$L$1000,2,0)+VLOOKUP(C135,'كيس ليمينيشن 1 ك'!$F$4:$L$1000,2,0)+VLOOKUP(C135,'باكيتة نايلون'!$F$4:$K$1000,2,0),0) -> 0 | H135: =IF(I135="","",I135*J135) ->  | J135: =IF(B135="","",IF(E135>0,0,M134)) ->  | K135: =IFERROR(IF(B135="","",IF(E135>0,K134+D135,L135*M135)),"") ->  | L135: =IF(E135+I135=0,"",L134+E135-I135) -> 
A136: 131 | D136: =IFERROR(VLOOKUP(C136,'ارز خام'!$F$4:$L$1000,2,0)+VLOOKUP(C136,'كيس ليمينيشن 1 ك'!$F$4:$L$1000,2,0)+VLOOKUP(C136,'باكيتة نايلون'!$F$4:$K$1000,2,0),0) -> 0 | M136: =IF(OR(E136+I136<0,B136=""),"",IF(E136>0,K136/L136,IF(L168=0,0,M135))) -> 
A137: 132 | D137: =IFERROR(VLOOKUP(C137,'ارز خام'!$F$4:$L$1000,2,0)+VLOOKUP(C137,'كيس ليمينيشن 1 ك'!$F$4:$L$1000,2,0)+VLOOKUP(C137,'باكيتة نايلون'!$F$4:$K$1000,2,0),0) -> 0
A138: 133 | D138: =IFERROR(VLOOKUP(C138,'ارز خام'!$F$4:$L$1000,2,0)+VLOOKUP(C138,'كيس ليمينيشن 1 ك'!$F$4:$L$1000,2,0)+VLOOKUP(C138,'باكيتة نايلون'!$F$4:$K$1000,2,0),0) -> 0
A139: 134 | D139: =IFERROR(VLOOKUP(C139,'ارز خام'!$F$4:$L$1000,2,0)+VLOOKUP(C139,'كيس ليمينيشن 1 ك'!$F$4:$L$1000,2,0)+VLOOKUP(C139,'باكيتة نايلون'!$F$4:$K$1000,2,0),0) -> 0
A140: 135 | D140: =IFERROR(VLOOKUP(C140,'ارز خام'!$F$4:$L$1000,2,0)+VLOOKUP(C140,'كيس ليمينيشن 1 ك'!$F$4:$L$1000,2,0)+VLOOKUP(C140,'باكيتة نايلون'!$F$4:$K$1000,2,0),0) -> 0
A141: 136 | D141: =IFERROR(VLOOKUP(C141,'ارز خام'!$F$4:$L$1000,2,0)+VLOOKUP(C141,'كيس ليمينيشن 1 ك'!$F$4:$L$1000,2,0)+VLOOKUP(C141,'باكيتة نايلون'!$F$4:$K$1000,2,0),0) -> 0
A142: 137 | D142: =IFERROR(VLOOKUP(C142,'ارز خام'!$F$4:$L$1000,2,0)+VLOOKUP(C142,'كيس ليمينيشن 1 ك'!$F$4:$L$1000,2,0)+VLOOKUP(C142,'باكيتة نايلون'!$F$4:$K$1000,2,0),0) -> 0
A143: 138 | D143: =IFERROR(VLOOKUP(C143,'ارز خام'!$F$4:$L$1000,2,0)+VLOOKUP(C143,'كيس ليمينيشن 1 ك'!$F$4:$L$1000,2,0)+VLOOKUP(C143,'باكيتة نايلون'!$F$4:$K$1000,2,0),0) -> 0
A144: 139 | D144: =IFERROR(VLOOKUP(C144,'ارز خام'!$F$4:$L$1000,2,0)+VLOOKUP(C144,'كيس ليمينيشن 1 ك'!$F$4:$L$1000,2,0)+VLOOKUP(C144,'باكيتة نايلون'!$F$4:$K$1000,2,0),0) -> 0
A145: 140 | D145: =IFERROR(VLOOKUP(C145,'ارز خام'!$F$4:$L$1000,2,0)+VLOOKUP(C145,'كيس ليمينيشن 1 ك'!$F$4:$L$1000,2,0)+VLOOKUP(C145,'باكيتة نايلون'!$F$4:$K$1000,2,0),0) -> 0
A146: 141 | D146: =IFERROR(VLOOKUP(C146,'ارز خام'!$F$4:$L$1000,2,0)+VLOOKUP(C146,'كيس ليمينيشن 1 ك'!$F$4:$L$1000,2,0)+VLOOKUP(C146,'باكيتة نايلون'!$F$4:$K$1000,2,0),0) -> 0
A147: 142 | D147: =IFERROR(VLOOKUP(C147,'ارز خام'!$F$4:$L$1000,2,0)+VLOOKUP(C147,'كيس ليمينيشن 1 ك'!$F$4:$L$1000,2,0)+VLOOKUP(C147,'باكيتة نايلون'!$F$4:$K$1000,2,0),0) -> 0
A148: 143 | D148: =IFERROR(VLOOKUP(C148,'ارز خام'!$F$4:$L$1000,2,0)+VLOOKUP(C148,'كيس ليمينيشن 1 ك'!$F$4:$L$1000,2,0)+VLOOKUP(C148,'باكيتة نايلون'!$F$4:$K$1000,2,0),0) -> 0
A149: 144 | D149: =IFERROR(VLOOKUP(C149,'ارز خام'!$F$4:$L$1000,2,0)+VLOOKUP(C149,'كيس ليمينيشن 1 ك'!$F$4:$L$1000,2,0)+VLOOKUP(C149,'باكيتة نايلون'!$F$4:$K$1000,2,0),0) -> 0
A150: 145 | D150: =IFERROR(VLOOKUP(C150,'ارز خام'!$F$4:$L$1000,2,0)+VLOOKUP(C150,'كيس ليمينيشن 1 ك'!$F$4:$L$1000,2,0)+VLOOKUP(C150,'باكيتة نايلون'!$F$4:$K$1000,2,0),0) -> 0
A151: 146 | D151: =IFERROR(VLOOKUP(C151,'ارز خام'!$F$4:$L$1000,2,0)+VLOOKUP(C151,'كيس ليمينيشن 1 ك'!$F$4:$L$1000,2,0)+VLOOKUP(C151,'باكيتة نايلون'!$F$4:$K$1000,2,0),0) -> 0
A152: 147 | D152: =IFERROR(VLOOKUP(C152,'ارز خام'!$F$4:$L$1000,2,0)+VLOOKUP(C152,'كيس ليمينيشن 1 ك'!$F$4:$L$1000,2,0)+VLOOKUP(C152,'باكيتة نايلون'!$F$4:$K$1000,2,0),0) -> 0
A153: 148 | D153: =IFERROR(VLOOKUP(C153,'ارز خام'!$F$4:$L$1000,2,0)+VLOOKUP(C153,'كيس ليمينيشن 1 ك'!$F$4:$L$1000,2,0)+VLOOKUP(C153,'باكيتة نايلون'!$F$4:$K$1000,2,0),0) -> 0
A154: 149 | D154: =IFERROR(VLOOKUP(C154,'ارز خام'!$F$4:$L$1000,2,0)+VLOOKUP(C154,'كيس ليمينيشن 1 ك'!$F$4:$L$1000,2,0)+VLOOKUP(C154,'باكيتة نايلون'!$F$4:$K$1000,2,0),0) -> 0
A155: 150 | D155: =IFERROR(VLOOKUP(C155,'ارز خام'!$F$4:$L$1000,2,0)+VLOOKUP(C155,'كيس ليمينيشن 1 ك'!$F$4:$L$1000,2,0)+VLOOKUP(C155,'باكيتة نايلون'!$F$4:$K$1000,2,0),0) -> 0
A156: 151 | D156: =IFERROR(VLOOKUP(C156,'ارز خام'!$F$4:$L$1000,2,0)+VLOOKUP(C156,'كيس ليمينيشن 1 ك'!$F$4:$L$1000,2,0)+VLOOKUP(C156,'باكيتة نايلون'!$F$4:$K$1000,2,0),0) -> 0
A157: 152 | D157: =IFERROR(VLOOKUP(C157,'ارز خام'!$F$4:$L$1000,2,0)+VLOOKUP(C157,'كيس ليمينيشن 1 ك'!$F$4:$L$1000,2,0)+VLOOKUP(C157,'باكيتة نايلون'!$F$4:$K$1000,2,0),0) -> 0
A158: 153 | D158: =IFERROR(VLOOKUP(C158,'ارز خام'!$F$4:$L$1000,2,0)+VLOOKUP(C158,'كيس ليمينيشن 1 ك'!$F$4:$L$1000,2,0)+VLOOKUP(C158,'باكيتة نايلون'!$F$4:$K$1000,2,0),0) -> 0
A159: 154 | D159: =IFERROR(VLOOKUP(C159,'ارز خام'!$F$4:$L$1000,2,0)+VLOOKUP(C159,'كيس ليمينيشن 1 ك'!$F$4:$L$1000,2,0)+VLOOKUP(C159,'باكيتة نايلون'!$F$4:$K$1000,2,0),0) -> 0
A160: 155 | D160: =IFERROR(VLOOKUP(C160,'ارز خام'!$F$4:$L$1000,2,0)+VLOOKUP(C160,'كيس ليمينيشن 1 ك'!$F$4:$L$1000,2,0)+VLOOKUP(C160,'باكيتة نايلون'!$F$4:$K$1000,2,0),0) -> 0
A161: 156 | D161: =IFERROR(VLOOKUP(C161,'ارز خام'!$F$4:$L$1000,2,0)+VLOOKUP(C161,'كيس ليمينيشن 1 ك'!$F$4:$L$1000,2,0)+VLOOKUP(C161,'باكيتة نايلون'!$F$4:$K$1000,2,0),0) -> 0
A162: 157 | D162: =IFERROR(VLOOKUP(C162,'ارز خام'!$F$4:$L$1000,2,0)+VLOOKUP(C162,'كيس ليمينيشن 1 ك'!$F$4:$L$1000,2,0)+VLOOKUP(C162,'باكيتة نايلون'!$F$4:$K$1000,2,0),0) -> 0
A163: 158 | D163: =IFERROR(VLOOKUP(C163,'ارز خام'!$F$4:$L$1000,2,0)+VLOOKUP(C163,'كيس ليمينيشن 1 ك'!$F$4:$L$1000,2,0)+VLOOKUP(C163,'باكيتة نايلون'!$F$4:$K$1000,2,0),0) -> 0
A164: 159 | D164: =IFERROR(VLOOKUP(C164,'ارز خام'!$F$4:$L$1000,2,0)+VLOOKUP(C164,'كيس ليمينيشن 1 ك'!$F$4:$L$1000,2,0)+VLOOKUP(C164,'باكيتة نايلون'!$F$4:$K$1000,2,0),0) -> 0
A165: 160 | D165: =IFERROR(VLOOKUP(C165,'ارز خام'!$F$4:$L$1000,2,0)+VLOOKUP(C165,'كيس ليمينيشن 1 ك'!$F$4:$L$1000,2,0)+VLOOKUP(C165,'باكيتة نايلون'!$F$4:$K$1000,2,0),0) -> 0
A166: 161 | D166: =IFERROR(VLOOKUP(C166,'ارز خام'!$F$4:$L$1000,2,0)+VLOOKUP(C166,'كيس ليمينيشن 1 ك'!$F$4:$L$1000,2,0)+VLOOKUP(C166,'باكيتة نايلون'!$F$4:$K$1000,2,0),0) -> 0
A167: 162 | D167: =IFERROR(VLOOKUP(C167,'ارز خام'!$F$4:$L$1000,2,0)+VLOOKUP(C167,'كيس ليمينيشن 1 ك'!$F$4:$L$1000,2,0)+VLOOKUP(C167,'باكيتة نايلون'!$F$4:$K$1000,2,0),0) -> 0
A168: 163 | D168: =IFERROR(VLOOKUP(C168,'ارز خام'!$F$4:$L$1000,2,0)+VLOOKUP(C168,'كيس ليمينيشن 1 ك'!$F$4:$L$1000,2,0)+VLOOKUP(C168,'باكيتة نايلون'!$F$4:$K$1000,2,0),0) -> 0
A169: 164 | D169: =IFERROR(VLOOKUP(C169,'ارز خام'!$F$4:$L$1000,2,0)+VLOOKUP(C169,'كيس ليمينيشن 1 ك'!$F$4:$L$1000,2,0)+VLOOKUP(C169,'باكيتة نايلون'!$F$4:$K$1000,2,0),0) -> 0
A170: 165 | D170: =IFERROR(VLOOKUP(C170,'ارز خام'!$F$4:$L$1000,2,0)+VLOOKUP(C170,'كيس ليمينيشن 1 ك'!$F$4:$L$1000,2,0)+VLOOKUP(C170,'باكيتة نايلون'!$F$4:$K$1000,2,0),0) -> 0
A171: 166 | D171: =IFERROR(VLOOKUP(C171,'ارز خام'!$F$4:$L$1000,2,0)+VLOOKUP(C171,'كيس ليمينيشن 1 ك'!$F$4:$L$1000,2,0)+VLOOKUP(C171,'باكيتة نايلون'!$F$4:$K$1000,2,0),0) -> 0
A172: 167 | D172: =IFERROR(VLOOKUP(C172,'ارز خام'!$F$4:$L$1000,2,0)+VLOOKUP(C172,'كيس ليمينيشن 1 ك'!$F$4:$L$1000,2,0)+VLOOKUP(C172,'باكيتة نايلون'!$F$4:$K$1000,2,0),0) -> 0
A173: 168 | D173: =IFERROR(VLOOKUP(C173,'ارز خام'!$F$4:$L$1000,2,0)+VLOOKUP(C173,'كيس ليمينيشن 1 ك'!$F$4:$L$1000,2,0)+VLOOKUP(C173,'باكيتة نايلون'!$F$4:$K$1000,2,0),0) -> 0
A174: 169 | D174: =IFERROR(VLOOKUP(C174,'ارز خام'!$F$4:$L$1000,2,0)+VLOOKUP(C174,'كيس ليمينيشن 1 ك'!$F$4:$L$1000,2,0)+VLOOKUP(C174,'باكيتة نايلون'!$F$4:$K$1000,2,0),0) -> 0
A175: 170 | D175: =IFERROR(VLOOKUP(C175,'ارز خام'!$F$4:$L$1000,2,0)+VLOOKUP(C175,'كيس ليمينيشن 1 ك'!$F$4:$L$1000,2,0)+VLOOKUP(C175,'باكيتة نايلون'!$F$4:$K$1000,2,0),0) -> 0
A176: 171 | D176: =IFERROR(VLOOKUP(C176,'ارز خام'!$F$4:$L$1000,2,0)+VLOOKUP(C176,'كيس ليمينيشن 1 ك'!$F$4:$L$1000,2,0)+VLOOKUP(C176,'باكيتة نايلون'!$F$4:$K$1000,2,0),0) -> 0
A177: 172 | D177: =IFERROR(VLOOKUP(C177,'ارز خام'!$F$4:$L$1000,2,0)+VLOOKUP(C177,'كيس ليمينيشن 1 ك'!$F$4:$L$1000,2,0)+VLOOKUP(C177,'باكيتة نايلون'!$F$4:$K$1000,2,0),0) -> 0
A178: 173 | D178: =IFERROR(VLOOKUP(C178,'ارز خام'!$F$4:$L$1000,2,0)+VLOOKUP(C178,'كيس ليمينيشن 1 ك'!$F$4:$L$1000,2,0)+VLOOKUP(C178,'باكيتة نايلون'!$F$4:$K$1000,2,0),0) -> 0
A179: 174 | D179: =IFERROR(VLOOKUP(C179,'ارز خام'!$F$4:$L$1000,2,0)+VLOOKUP(C179,'كيس ليمينيشن 1 ك'!$F$4:$L$1000,2,0)+VLOOKUP(C179,'باكيتة نايلون'!$F$4:$K$1000,2,0),0) -> 0
A180: 175 | D180: =IFERROR(VLOOKUP(C180,'ارز خام'!$F$4:$L$1000,2,0)+VLOOKUP(C180,'كيس ليمينيشن 1 ك'!$F$4:$L$1000,2,0)+VLOOKUP(C180,'باكيتة نايلون'!$F$4:$K$1000,2,0),0) -> 0
A181: 176 | D181: =IFERROR(VLOOKUP(C181,'ارز خام'!$F$4:$L$1000,2,0)+VLOOKUP(C181,'كيس ليمينيشن 1 ك'!$F$4:$L$1000,2,0)+VLOOKUP(C181,'باكيتة نايلون'!$F$4:$K$1000,2,0),0) -> 0
A182: 177 | D182: =IFERROR(VLOOKUP(C182,'ارز خام'!$F$4:$L$1000,2,0)+VLOOKUP(C182,'كيس ليمينيشن 1 ك'!$F$4:$L$1000,2,0)+VLOOKUP(C182,'باكيتة نايلون'!$F$4:$K$1000,2,0),0) -> 0
A183: 178 | D183: =IFERROR(VLOOKUP(C183,'ارز خام'!$F$4:$L$1000,2,0)+VLOOKUP(C183,'كيس ليمينيشن 1 ك'!$F$4:$L$1000,2,0)+VLOOKUP(C183,'باكيتة نايلون'!$F$4:$K$1000,2,0),0) -> 0
A184: 179 | D184: =IFERROR(VLOOKUP(C184,'ارز خام'!$F$4:$L$1000,2,0)+VLOOKUP(C184,'كيس ليمينيشن 1 ك'!$F$4:$L$1000,2,0)+VLOOKUP(C184,'باكيتة نايلون'!$F$4:$K$1000,2,0),0) -> 0
A185: 180 | D185: =IFERROR(VLOOKUP(C185,'ارز خام'!$F$4:$L$1000,2,0)+VLOOKUP(C185,'كيس ليمينيشن 1 ك'!$F$4:$L$1000,2,0)+VLOOKUP(C185,'باكيتة نايلون'!$F$4:$K$1000,2,0),0) -> 0
A186: 181 | D186: =IFERROR(VLOOKUP(C186,'ارز خام'!$F$4:$L$1000,2,0)+VLOOKUP(C186,'كيس ليمينيشن 1 ك'!$F$4:$L$1000,2,0)+VLOOKUP(C186,'باكيتة نايلون'!$F$4:$K$1000,2,0),0) -> 0
A187: 182 | D187: =IFERROR(VLOOKUP(C187,'ارز خام'!$F$4:$L$1000,2,0)+VLOOKUP(C187,'كيس ليمينيشن 1 ك'!$F$4:$L$1000,2,0)+VLOOKUP(C187,'باكيتة نايلون'!$F$4:$K$1000,2,0),0) -> 0
A188: 183 | D188: =IFERROR(VLOOKUP(C188,'ارز خام'!$F$4:$L$1000,2,0)+VLOOKUP(C188,'كيس ليمينيشن 1 ك'!$F$4:$L$1000,2,0)+VLOOKUP(C188,'باكيتة نايلون'!$F$4:$K$1000,2,0),0) -> 0
A189: 184 | D189: =IFERROR(VLOOKUP(C189,'ارز خام'!$F$4:$L$1000,2,0)+VLOOKUP(C189,'كيس ليمينيشن 1 ك'!$F$4:$L$1000,2,0)+VLOOKUP(C189,'باكيتة نايلون'!$F$4:$K$1000,2,0),0) -> 0
A190: 185 | D190: =IFERROR(VLOOKUP(C190,'ارز خام'!$F$4:$L$1000,2,0)+VLOOKUP(C190,'كيس ليمينيشن 1 ك'!$F$4:$L$1000,2,0)+VLOOKUP(C190,'باكيتة نايلون'!$F$4:$K$1000,2,0),0) -> 0
A191: 186 | D191: =IFERROR(VLOOKUP(C191,'ارز خام'!$F$4:$L$1000,2,0)+VLOOKUP(C191,'كيس ليمينيشن 1 ك'!$F$4:$L$1000,2,0)+VLOOKUP(C191,'باكيتة نايلون'!$F$4:$K$1000,2,0),0) -> 0
A192: 187 | D192: =IFERROR(VLOOKUP(C192,'ارز خام'!$F$4:$L$1000,2,0)+VLOOKUP(C192,'كيس ليمينيشن 1 ك'!$F$4:$L$1000,2,0)+VLOOKUP(C192,'باكيتة نايلون'!$F$4:$K$1000,2,0),0) -> 0
A193: 188 | D193: =IFERROR(VLOOKUP(C193,'ارز خام'!$F$4:$L$1000,2,0)+VLOOKUP(C193,'كيس ليمينيشن 1 ك'!$F$4:$L$1000,2,0)+VLOOKUP(C193,'باكيتة نايلون'!$F$4:$K$1000,2,0),0) -> 0
A194: 189 | D194: =IFERROR(VLOOKUP(C194,'ارز خام'!$F$4:$L$1000,2,0)+VLOOKUP(C194,'كيس ليمينيشن 1 ك'!$F$4:$L$1000,2,0)+VLOOKUP(C194,'باكيتة نايلون'!$F$4:$K$1000,2,0),0) -> 0
A195: 190 | D195: =IFERROR(VLOOKUP(C195,'ارز خام'!$F$4:$L$1000,2,0)+VLOOKUP(C195,'كيس ليمينيشن 1 ك'!$F$4:$L$1000,2,0)+VLOOKUP(C195,'باكيتة نايلون'!$F$4:$K$1000,2,0),0) -> 0
A196: 191 | D196: =IFERROR(VLOOKUP(C196,'ارز خام'!$F$4:$L$1000,2,0)+VLOOKUP(C196,'كيس ليمينيشن 1 ك'!$F$4:$L$1000,2,0)+VLOOKUP(C196,'باكيتة نايلون'!$F$4:$K$1000,2,0),0) -> 0
A197: 192 | D197: =IFERROR(VLOOKUP(C197,'ارز خام'!$F$4:$L$1000,2,0)+VLOOKUP(C197,'كيس ليمينيشن 1 ك'!$F$4:$L$1000,2,0)+VLOOKUP(C197,'باكيتة نايلون'!$F$4:$K$1000,2,0),0) -> 0
A198: 193 | D198: =IFERROR(VLOOKUP(C198,'ارز خام'!$F$4:$L$1000,2,0)+VLOOKUP(C198,'كيس ليمينيشن 1 ك'!$F$4:$L$1000,2,0)+VLOOKUP(C198,'باكيتة نايلون'!$F$4:$K$1000,2,0),0) -> 0 | F198: =IFERROR(IF(OR(D198="",E198=""),"",D198/E198),0) -> 
A199: 194 | D199: =IFERROR(VLOOKUP(C199,'ارز خام'!$F$4:$L$1000,2,0)+VLOOKUP(C199,'كيس ليمينيشن 1 ك'!$F$4:$L$1000,2,0)+VLOOKUP(C199,'باكيتة نايلون'!$F$4:$K$1000,2,0),0) -> 0 | H199: =IF(I199="","",I199*J199) ->  | J199: =IF(B199="","",IF(E199>0,0,M198)) ->  | K199: =IFERROR(IF(B199="","",IF(E199>0,K198+D199,L199*M199)),"") ->  | L199: =IF(E199+I199=0,"",L198+E199-I199) -> 
A200: 195 | D200: =IFERROR(VLOOKUP(C200,'ارز خام'!$F$4:$L$1000,2,0)+VLOOKUP(C200,'كيس ليمينيشن 1 ك'!$F$4:$L$1000,2,0)+VLOOKUP(C200,'باكيتة نايلون'!$F$4:$K$1000,2,0),0) -> 0 | M200: =IF(OR(E200+I200<0,B200=""),"",IF(E200>0,K200/L200,IF(L232=0,0,M199))) -> 
... 161 more rows

Sheet سكر خام
A1: كارت صنف ( سكر قصب خشن سايب )
J2: =LOOKUP(1E+24,J:J) -> 0 | K2: =LOOKUP(1E+24,K:K) -> 0 | L2: =LOOKUP(1E+24,L:L) -> 0
A3: م | B3: التاريخ | C3: وارد | F3: منصرف | J3: رصيد
C4: اجمالى | D4: كمية | E4: سعر | F4: رقم التشغيلة | G4: اجمالى | H4: كمية | I4: سعر | J4: اجمالى | K4: كمية | L4: سعر
C5: =SUM(C6:C16) -> 69100 | D5: =SUM(D6:D16) -> 1000 | E5: =C5/D5 -> 69.1 | G5: =SUM(G6:G16) -> 69100 | H5: =SUM(H6:H16) -> 1000 | I5: =G5/H5 -> 69.1
A6: 1 | B6: 2021-01-02 | C6: 6500 | D6: 100 | E6: =IFERROR(IF(OR(C6="",D6=""),"",C6/D6),0) -> 65 | F6: 0 | G6: 0 | H6: 0 | I6: 0 | J6: =C6 -> 6500 | K6: =D6 -> 100 | L6: =IFERROR(J6/K6,"") -> 65
A7: 2 | B7: 2021-01-04 | C7: 0 | D7: 0 | E7: =IFERROR(IF(OR(C7="",D7=""),"",C7/D7),0) -> 0 | F7: ت ق 1 | G7: =IF(H7="","",H7*I7) -> 6500 | H7: 100 | I7: =IF(B7="","",IF(D7>0,0,L6)) -> 65 | J7: =IFERROR(IF(B7="","",IF(D7>0,J6+C7,K7*L7)),"") -> 0 | K7: =IF(D7+H7=0,"",K6+D7-H7) -> 0 | L7: =IF(OR(D7+H7<0,B7=""),"",IF(D7>0,J7/K7,IF(K7=0,0,L6))) -> 0
A8: 3 | B8: 2021-01-06 | C8: 48700 | D8: 700 | E8: 69.57142857 | F8: 0 | G8: 0 | H8: 0 | I8: 0 | J8: 48700 | K8: 700 | L8: 69.57142857
A9: 4 | B9: 2021-01-07 | C9: 0 | D9: 0 | E9: 0 | F9: ت ق 2 | G9: 15653.57143 | H9: 225 | I9: 69.57142857 | J9: 33046.42857 | K9: 475 | L9: 69.57142857
A10: 5 | B10: 2021-01-08 | C10: 0 | D10: 0 | E10: 0 | F10: ت ق 3 | G10: 8000.714286 | H10: 115 | I10: 69.57142857 | J10: 25045.71429 | K10: 360 | L10: 69.57142857
A11: 6 | B11: 2021-01-09 | C11: 0 | D11: 0 | E11: 0 | F11: ت ق 4 | G11: 11827.14286 | H11: 170 | I11: 69.57142857 | J11: 13218.57143 | K11: 190 | L11: 69.57142857
A12: 7 | B12: 2021-01-10 | C12: 0 | D12: 0 | E12: 0 | F12: ت ق 5 | G12: 8000.714286 | H12: 115 | I12: 69.57142857 | J12: 5217.857143 | K12: 75 | L12: 69.57142857
A13: 8 | B13: 2021-01-14 | C13: 13900 | D13: 200 | E13: 69.5 | F13: 0 | G13: 0 | H13: 0 | I13: 0 | J13: 19117.85714 | K13: 275 | L13: 69.51948052
A14: 9 | B14: 2021-02-16 | C14: 0 | D14: 0 | E14: 0 | F14: ت ق 6 | G14: 15294.28571 | H14: 220 | I14: 69.51948052 | J14: 3823.571429 | K14: 55 | L14: 69.51948052
A15: 10 | B15: 2021-02-18 | C15: 0 | D15: 0 | E15: 0 | F15: ت ق 7 | G15: 3823.571429 | H15: 55 | I15: =IF(B15="","",IF(D15>0,0,L14)) -> 69.51948052 | J15: 0 | K15: 0 | L15: =IF(OR(D15+H15<0,B15=""),"",IF(D15>0,J15/K15,IF(K15=0,0,L14))) -> 0
A16: 11 | B16: Q﷐⬚﷯ | C16: ﷐⬚﷯ | E16: ﷐⬚﷯ | I16: 0 | L16: =IF(OR(D16+H16<0,B16=""),"",IF(D16>0,J16/K16,IF(K16=0,0,L15))) -> 0
A17: 12 | B17: 1900-02-13 | C17: 44 | E17: 5555555 | I17: 0 | L17: 0
A18: 13 | B18: 1982-10-10 | C18: 100 | E18: 15000 | I18: 0 | L18: 0
A19: 14
A20: 15
A21: 16
A22: 17
A23: 18
A24: 19
A25: 20
A26: 21
A27: 22
A28: 23
A29: 24
A30: 25
A31: 26
A32: 27
A33: 28
A34: 29
A35: 30
A36: 31
A37: 32
A38: 33
A39: 34
A40: 35
A41: 36
A42: 37
A43: 38
A44: 39
A45: 40
A46: 41
A47: 42
A48: 43
A49: 44
A50: 45
A51: 46
A52: 47
A53: 48
A54: 49
A55: 50
A56: 51
A57: 52
A58: 53
A59: 54
A60: 55
A61: 56
A62: 57
A63: 58
A64: 59
A65: 60
A66: 61
A67: 62
A68: 63
A69: 64
A70: 65
A71: 66 | E71: =IFERROR(IF(OR(C71="",D71=""),"",C71/D71),0) ->  | G71: =IF(H71="","",H71*I71) ->  | I71: =IF(B71="","",IF(D71>0,0,L70)) ->  | J71: =IFERROR(IF(B71="","",IF(D71>0,J70+C71,K71*L71)),"") ->  | K71: =IF(D71+H71=0,"",K70+D71-H71) -> 
A72: 67
A73: 68
A74: 69
A75: 70
A76: 71
A77: 72
A78: 73
A79: 74
A80: 75 | L80: =IF(OR(D80+H80<0,B80=""),"",IF(D80>0,J80/K80,IF(K80=0,0,L79))) -> 
A81: 76
A82: 77
A83: 78
A84: 79
A85: 80
A86: 81
A87: 82
A88: 83
A89: 84
A90: 85
A91: 86
A92: 87
A93: 88
A94: 89
A95: 90
A96: 91
A97: 92
A98: 93
A99: 94
A100: 95
A101: 96
A102: 97
A103: 98
A104: 99
A105: 100
A106: 101
A107: 102
A108: 103
A109: 104
A110: 105
A111: 106
A112: 107
A113: 108
A114: 109
A115: 110
A116: 111
A117: 112
A118: 113
A119: 114
A120: 115
A121: 116
A122: 117
A123: 118
A124: 119
A125: 120
A126: 121
A127: 122
A128: 123
A129: 124
A130: 125
A131: 126
A132: 127
A133: 128
A134: 129
A135: 130 | E135: =IFERROR(IF(OR(C135="",D135=""),"",C135/D135),0) ->  | G135: =IF(H135="","",H135*I135) ->  | I135: =IF(B135="","",IF(D135>0,0,L134)) ->  | J135: =IFERROR(IF(B135="","",IF(D135>0,J134+C135,K135*L135)),"") ->  | K135: =IF(D135+H135=0,"",K134+D135-H135) -> 
A136: 131
A137: 132
A138: 133
A139: 134
A140: 135
A141: 136
A142: 137
A143: 138
A144: 139 | L144: =IF(OR(D144+H144<0,B144=""),"",IF(D144>0,J144/K144,IF(K144=0,0,L143))) -> 
A145: 140
A146: 141
A147: 142
A148: 143
A149: 144
A150: 145
A151: 146
A152: 147
A153: 148
A154: 149
A155: 150
A156: 151
A157: 152
A158: 153
A159: 154
A160: 155
A161: 156
A162: 157
A163: 158
A164: 159
A165: 160
A166: 161
A167: 162
A168: 163
A169: 164
A170: 165
A171: 166
A172: 167
A173: 168
A174: 169
A175: 170
A176: 171
A177: 172
A178: 173
A179: 174
A180: 175
A181: 176
A182: 177
A183: 178
A184: 179
A185: 180
A186: 181
A187: 182
A188: 183
A189: 184
A190: 185
A191: 186
A192: 187
A193: 188
A194: 189
A195: 190
A196: 191
A197: 192
A198: 193
A199: 194 | E199: =IFERROR(IF(OR(C199="",D199=""),"",C199/D199),0) ->  | G199: =IF(H199="","",H199*I199) ->  | I199: =IF(B199="","",IF(D199>0,0,L198)) ->  | J199: =IFERROR(IF(B199="","",IF(D199>0,J198+C199,K199*L199)),"") ->  | K199: =IF(D199+H199=0,"",K198+D199-H199) -> 
A200: 195
... 171 more rows

Sheet ارز خام
A1: كارت صنف ( ارز شعبى سايب )
J2: =LOOKUP(1E+24,J:J) -> 0 | K2: =LOOKUP(1E+24,K:K) -> 0 | L2: =LOOKUP(1E+24,L:L) -> 0
A3: م | B3: التاريخ | C3: وارد | F3: منصرف | J3: رصيد
A4: م | C4: اجمالى | D4: كمية | E4: سعر | F4: رقم التشغيلة | G4: اجمالى | H4: كمية | I4: سعر | J4: اجمالى | K4: كمية | L4: سعر
A5: اجماليات | C5: =SUM(C6:C16) -> 5500 | D5: =SUM(D6:D16) -> 100 | E5: =C5/D5 -> 55 | G5: =SUM(G6:G16) -> 5500 | H5: =SUM(H6:H16) -> 100 | I5: =G5/H5 -> 55
A6: 1 | B6: 2021-01-02 | C6: 5500 | D6: 100 | E6: =IFERROR(IF(OR(C6="",D6=""),"",C6/D6),0) -> 55 | G6: 0 | H6: 0 | I6: 0 | J6: =C6 -> 5500 | K6: =D6 -> 100 | L6: =IFERROR(J6/K6,"") -> 55
A7: 2 | B7: 2021-01-05 | C7: 0 | D7: 0 | E7: =IFERROR(IF(OR(C7="",D7=""),"",C7/D7),0) -> 0 | F7: ت ز 1 | G7: =IF(H7="","",H7*I7) -> 5500 | H7: 100 | I7: =IF(B7="","",IF(D7>0,0,L6)) -> 55 | J7: =IFERROR(IF(B7="","",IF(D7>0,J6+C7,K7*L7)),"") -> 0 | K7: =IF(D7+H7=0,"",K6+D7-H7) -> 0 | L7: =IF(OR(D7+H7<0,B7=""),"",IF(D7>0,J7/K7,IF(K7=0,0,L6))) -> 0
A8: 3 | I8: =IF(B8="","",IF(D8>0,0,L7)) ->  | L8: =IF(OR(D8+H8<0,B8=""),"",IF(D8>0,J8/K8,IF(K8=0,0,L7))) -> 
A9: 4
A10: 5
A11: 6
A12: 7
A13: 8
A14: 9
A15: 10
A16: 11
A17: 12
A18: 13
A19: 14
A20: 15
A21: 16
A22: 17
A23: 18
A24: 19
A25: 20
A26: 21
A27: 22
A28: 23
A29: 24
A30: 25
A31: 26
A32: 27
A33: 28
A34: 29
A35: 30
A36: 31
A37: 32
A38: 33
A39: 34
A40: 35
A41: 36
A42: 37
A43: 38
A44: 39
A45: 40
A46: 41
A47: 42
A48: 43
A49: 44
A50: 45
A51: 46
A52: 47
A53: 48
A54: 49
A55: 50
A56: 51
A57: 52
A58: 53
A59: 54
A60: 55
A61: 56
A62: 57
A63: 58
A64: 59
A65: 60
A66: 61
A67: 62
A68: 63
A69: 64
A70: 65
A71: 66 | E71: =IFERROR(IF(OR(C71="",D71=""),"",C71/D71),0) ->  | G71: =IF(H71="","",H71*I71) ->  | J71: =IFERROR(IF(B71="","",IF(D71>0,J70+C71,K71*L71)),"") ->  | K71: =IF(D71+H71=0,"",K70+D71-H71) -> 
A72: 67 | I72: =IF(B72="","",IF(D72>0,0,L71)) ->  | L72: =IF(OR(D72+H72<0,B72=""),"",IF(D72>0,J72/K72,IF(K72=0,0,L71))) -> 
A73: 68
A74: 69
A75: 70
A76: 71
A77: 72
A78: 73
A79: 74
A80: 75
A81: 76
A82: 77
A83: 78
A84: 79
A85: 80
A86: 81
A87: 82
A88: 83
A89: 84
A90: 85
A91: 86
A92: 87
A93: 88
A94: 89
A95: 90
A96: 91
A97: 92
A98: 93
A99: 94
A100: 95
A101: 96
A102: 97
A103: 98
A104: 99
A105: 100
A106: 101
A107: 102
A108: 103
A109: 104
A110: 105
A111: 106
A112: 107
A113: 108
A114: 109
A115: 110
A116: 111
A117: 112
A118: 113
A119: 114
A120: 115
A121: 116
A122: 117
A123: 118
A124: 119
A125: 120
A126: 121
A127: 122
A128: 123
A129: 124
A130: 125
A131: 126
A132: 127
A133: 128
A134: 129
A135: 130 | E135: =IFERROR(IF(OR(C135="",D135=""),"",C135/D135),0) ->  | G135: =IF(H135="","",H135*I135) ->  | J135: =IFERROR(IF(B135="","",IF(D135>0,J134+C135,K135*L135)),"") ->  | K135: =IF(D135+H135=0,"",K134+D135-H135) -> 
A136: 131 | I136: =IF(B136="","",IF(D136>0,0,L135)) ->  | L136: =IF(OR(D136+H136<0,B136=""),"",IF(D136>0,J136/K136,IF(K136=0,0,L135))) -> 
A137: 132
A138: 133
A139: 134
A140: 135
A141: 136
A142: 137
A143: 138
A144: 139
A145: 140
A146: 141
A147: 142
A148: 143
A149: 144
A150: 145
A151: 146
A152: 147
A153: 148
A154: 149
A155: 150
A156: 151
A157: 152
A158: 153
A159: 154
A160: 155
A161: 156
A162: 157
A163: 158
A164: 159
A165: 160
A166: 161
A167: 162
A168: 163
A169: 164
A170: 165
A171: 166
A172: 167
A173: 168
A174: 169
A175: 170
A176: 171
A177: 172
A178: 173
A179: 174
A180: 175
A181: 176
A182: 177
A183: 178
A184: 179
A185: 180
A186: 181
A187: 182
A188: 183
A189: 184
A190: 185
A191: 186
A192: 187
A193: 188
A194: 189
A195: 190
A196: 191
A197: 192
A198: 193
A199: 194 | E199: =IFERROR(IF(OR(C199="",D199=""),"",C199/D199),0) ->  | G199: =IF(H199="","",H199*I199) ->  | J199: =IFERROR(IF(B199="","",IF(D199>0,J198+C199,K199*L199)),"") ->  | K199: =IF(D199+H199=0,"",K198+D199-H199) -> 
A200: 195 | I200: =IF(B200="","",IF(D200>0,0,L199)) ->  | L200: =IF(OR(D200+H200<0,B200=""),"",IF(D200>0,J200/K200,IF(K200=0,0,L199))) -> 
... 161 more rows

Sheet كيس هاي 1 ك
A1: كارت صنف ( كيس هاى 1 ك )
J2: =LOOKUP(1E+24,J:J) -> 2049.9425 | K2: =LOOKUP(1E+24,K:K) -> 65.395 | L2: =LOOKUP(1E+24,L:L) -> 31.34708311
A3: م | B3: التاريخ | C3: وارد | F3: منصرف | J3: رصيد
A4: م | C4: اجمالى | D4: كمية | E4: سعر | F4: رقم التشغيلة | G4: اجمالى | H4: كمية | I4: سعر | J4: اجمالى | K4: كمية | L4: سعر
A5: اجماليات | C5: =SUM(C6:C16) -> 2825 | D5: =SUM(D6:D16) -> 90 | E5: =C5/D5 -> 31.38888889 | G5: =SUM(G6:G16) -> 775.0575 | H5: =SUM(H6:H16) -> 24.605 | I5: =G5/H5 -> 31.5
A6: 1 | B6: 2021-01-01 | C6: 1575 | D6: 50 | E6: =IFERROR(IF(OR(C6="",D6=""),"",C6/D6),0) -> 31.5 | G6: 0 | H6: 0 | I6: 0 | J6: =C6 -> 1575 | K6: =D6 -> 50 | L6: =IFERROR(J6/K6,"") -> 31.5
A7: 2 | B7: 2021-01-04 | C7: 0 | D7: 0 | E7: =IFERROR(IF(OR(C7="",D7=""),"",C7/D7),0) -> 0 | F7: ت ق 1 | G7: =IF(H7="","",H7*I7) -> 78.75 | H7: 2.5 | I7: =IF(B7="","",IF(D7>0,0,L6)) -> 31.5 | J7: =IFERROR(IF(B7="","",IF(D7>0,J6+C7,K7*L7)),"") -> 1496.25 | K7: =IF(D7+H7=0,"",K6+D7-H7) -> 47.5 | L7: =IF(OR(D7+H7<0,B7=""),"",IF(D7>0,J7/K7,IF(K7=0,0,L6))) -> 31.5
A8: 3 | B8: 2021-01-07 | C8: 0 | D8: 0 | E8: 0 | F8: ت ق 2 | G8: 173.25 | H8: 5.5 | I8: =IF(B8="","",IF(D8>0,0,L7)) -> 31.5 | J8: 1323 | K8: 42 | L8: 31.5
A9: 4 | B9: 2021-01-08 | C9: 0 | D9: 0 | E9: 0 | F9: ت ق 3 | G9: 86.625 | H9: 2.75 | I9: 31.5 | J9: 1236.375 | K9: 39.25 | L9: 31.5
A10: 5 | B10: 2021-01-09 | C10: 0 | D10: 0 | E10: 0 | F10: ت ق 4 | G10: 121.275 | H10: 3.85 | I10: 31.5 | J10: 1115.1 | K10: 35.4 | L10: 31.5
A11: 6 | B11: 2021-01-10 | C11: 0 | D11: 0 | E11: 0 | F11: ت ق 5 | G11: 83.79 | H11: 2.66 | I11: 31.5 | J11: 1031.31 | K11: 32.74 | L11: 31.5
A12: 7 | B12: 2021-01-16 | C12: 0 | D12: 0 | E12: 0 | F12: ت ق 6 | G12: 185.22 | H12: 5.88 | I12: 31.5 | J12: 846.09 | K12: 26.86 | L12: 31.5
A13: 8 | B13: 2021-01-18 | C13: 0 | D13: 0 | E13: 0 | F13: ت ق 7 | G13: 46.1475 | H13: 1.465 | I13: 31.5 | J13: 799.9425 | K13: 25.395 | L13: 31.5
A14: 9 | B14: 2021-01-31 | C14: 1250 | D14: 40 | E14: 31.25 | G14: 0 | H14: 0 | I14: 0 | J14: 2049.9425 | K14: 65.395 | L14: =IF(OR(D14+H14<0,B14=""),"",IF(D14>0,J14/K14,IF(K14=0,0,L13))) -> 31.34708311
A15: 10 | L15: =IF(OR(D15+H15<0,B15=""),"",IF(D15>0,J15/K15,IF(K15=0,0,L14))) -> 
A16: 11
A17: 12
A18: 13
A19: 14
A20: 15
A21: 16
A22: 17
A23: 18
A24: 19
A25: 20
A26: 21
A27: 22
A28: 23
A29: 24
A30: 25
A31: 26
A32: 27
A33: 28
A34: 29
A35: 30
A36: 31
A37: 32
A38: 33
A39: 34
A40: 35
A41: 36
A42: 37
A43: 38
A44: 39
A45: 40
A46: 41
A47: 42
A48: 43
A49: 44
A50: 45
A51: 46
A52: 47
A53: 48
A54: 49
A55: 50
A56: 51
A57: 52
A58: 53
A59: 54
A60: 55
A61: 56
A62: 57
A63: 58
A64: 59
A65: 60
A66: 61
A67: 62
A68: 63
A69: 64
A70: 65
A71: 66 | E71: =IFERROR(IF(OR(C71="",D71=""),"",C71/D71),0) ->  | G71: =IF(H71="","",H71*I71) ->  | J71: =IFERROR(IF(B71="","",IF(D71>0,J70+C71,K71*L71)),"") ->  | K71: =IF(D71+H71=0,"",K70+D71-H71) -> 
A72: 67 | I72: =IF(B72="","",IF(D72>0,0,L71)) -> 
A73: 68
A74: 69
A75: 70
A76: 71
A77: 72
A78: 73
A79: 74 | L79: =IF(OR(D79+H79<0,B79=""),"",IF(D79>0,J79/K79,IF(K79=0,0,L78))) -> 
A80: 75
A81: 76
A82: 77
A83: 78
A84: 79
A85: 80
A86: 81
A87: 82
A88: 83
A89: 84
A90: 85
A91: 86
A92: 87
A93: 88
A94: 89
A95: 90
A96: 91
A97: 92
A98: 93
A99: 94
A100: 95
A101: 96
A102: 97
A103: 98
A104: 99
A105: 100
A106: 101
A107: 102
A108: 103
A109: 104
A110: 105
A111: 106
A112: 107
A113: 108
A114: 109
A115: 110
A116: 111
A117: 112
A118: 113
A119: 114
A120: 115
A121: 116
A122: 117
A123: 118
A124: 119
A125: 120
A126: 121
A127: 122
A128: 123
A129: 124
A130: 125
A131: 126
A132: 127
A133: 128
A134: 129
A135: 130 | E135: =IFERROR(IF(OR(C135="",D135=""),"",C135/D135),0) ->  | G135: =IF(H135="","",H135*I135) ->  | J135: =IFERROR(IF(B135="","",IF(D135>0,J134+C135,K135*L135)),"") ->  | K135: =IF(D135+H135=0,"",K134+D135-H135) -> 
A136: 131 | I136: =IF(B136="","",IF(D136>0,0,L135)) -> 
A137: 132
A138: 133
A139: 134
A140: 135
A141: 136
A142: 137
A143: 138 | L143: =IF(OR(D143+H143<0,B143=""),"",IF(D143>0,J143/K143,IF(K143=0,0,L142))) -> 
A144: 139
A145: 140
A146: 141
A147: 142
A148: 143
A149: 144
A150: 145
A151: 146
A152: 147
A153: 148
A154: 149
A155: 150
A156: 151
A157: 152
A158: 153
A159: 154
A160: 155
A161: 156
A162: 157
A163: 158
A164: 159
A165: 160
A166: 161
A167: 162
A168: 163
A169: 164
A170: 165
A171: 166
A172: 167
A173: 168
A174: 169
A175: 170
A176: 171
A177: 172
A178: 173
A179: 174
A180: 175
A181: 176
A182: 177
A183: 178
A184: 179
A185: 180
A186: 181
A187: 182
A188: 183
A189: 184
A190: 185
A191: 186
A192: 187
A193: 188
A194: 189
A195: 190
A196: 191
A197: 192
A198: 193
A199: 194 | E199: =IFERROR(IF(OR(C199="",D199=""),"",C199/D199),0) ->  | G199: =IF(H199="","",H199*I199) ->  | J199: =IFERROR(IF(B199="","",IF(D199>0,J198+C199,K199*L199)),"") ->  | K199: =IF(D199+H199=0,"",K198+D199-H199) -> 
A200: 195 | I200: =IF(B200="","",IF(D200>0,0,L199)) -> 
... 161 more rows

Sheet كيس ليمينيشن 1 ك
A1: كارت صنف ( كيس ليمينيشن 1 ك )
J2: =LOOKUP(1E+24,J:J) -> 1427.533333 | K2: =LOOKUP(1E+24,K:K) -> 24.5 | L2: =LOOKUP(1E+24,L:L) -> 58.26666667
A3: م | B3: التاريخ | C3: وارد | F3: منصرف | J3: رصيد
A4: م | C4: اجمالى | D4: كمية | E4: سعر | F4: رقم التشغيلة | G4: اجمالى | H4: كمية | I4: سعر | J4: اجمالى | K4: كمية | L4: سعر
A5: اجماليات | C5: =SUM(C6:C16) -> 1748 | D5: =SUM(D6:D16) -> 30 | E5: =C5/D5 -> 58.26666667 | G5: =SUM(G6:G16) -> 320.4666667 | H5: =SUM(H6:H16) -> 5.5 | I5: =G5/H5 -> 58.26666667
A6: 1 | B6: 2021-01-01 | C6: 273 | D6: 5 | E6: =IFERROR(IF(OR(C6="",D6=""),"",C6/D6),0) -> 54.6 | G6: 0 | H6: 0 | I6: 0 | J6: =C6 -> 273 | K6: =D6 -> 5 | L6: =IFERROR(J6/K6,"") -> 54.6
A7: 2 | B7: 2021-01-05 | C7: 1475 | D7: 25 | E7: =IFERROR(IF(OR(C7="",D7=""),"",C7/D7),0) -> 59 | G7: =IF(H7="","",H7*I7) -> 0 | H7: 0 | I7: =IF(B7="","",IF(D7>0,0,L6)) -> 0 | J7: =IFERROR(IF(B7="","",IF(D7>0,J6+C7,K7*L7)),"") -> 1748 | K7: =IF(D7+H7=0,"",K6+D7-H7) -> 30 | L7: =IF(OR(D7+H7<0,B7=""),"",IF(D7>0,J7/K7,IF(K7=0,0,L6))) -> 58.26666667
A8: 3 | B8: 2021-01-05 | F8: ت ز 1 | G8: 320.4666667 | H8: 5.5 | I8: =IF(B8="","",IF(D8>0,0,L7)) -> 58.26666667 | J8: 1427.533333 | K8: 24.5 | L8: =IF(OR(D8+H8<0,B8=""),"",IF(D8>0,J8/K8,IF(K8=0,0,L7))) -> 58.26666667
A9: 4
A10: 5
A11: 6
A12: 7
A13: 8
A14: 9
A15: 10
A16: 11
A17: 12
A18: 13
A19: 14
A20: 15
A21: 16
A22: 17
A23: 18
A24: 19
A25: 20
A26: 21
A27: 22
A28: 23
A29: 24
A30: 25
A31: 26
A32: 27
A33: 28
A34: 29
A35: 30
A36: 31
A37: 32
A38: 33
A39: 34
A40: 35
A41: 36
A42: 37
A43: 38
A44: 39
A45: 40
A46: 41
A47: 42
A48: 43
A49: 44
A50: 45
A51: 46
A52: 47
A53: 48
A54: 49
A55: 50
A56: 51
A57: 52
A58: 53
A59: 54
A60: 55
A61: 56
A62: 57
A63: 58
A64: 59
A65: 60
A66: 61
A67: 62
A68: 63
A69: 64
A70: 65
A71: 66 | E71: =IFERROR(IF(OR(C71="",D71=""),"",C71/D71),0) ->  | G71: =IF(H71="","",H71*I71) ->  | J71: =IFERROR(IF(B71="","",IF(D71>0,J70+C71,K71*L71)),"") ->  | K71: =IF(D71+H71=0,"",K70+D71-H71) -> 
A72: 67 | I72: =IF(B72="","",IF(D72>0,0,L71)) ->  | L72: =IF(OR(D72+H72<0,B72=""),"",IF(D72>0,J72/K72,IF(K72=0,0,L71))) -> 
A73: 68
A74: 69
A75: 70
A76: 71
A77: 72
A78: 73
A79: 74
A80: 75
A81: 76
A82: 77
A83: 78
A84: 79
A85: 80
A86: 81
A87: 82
A88: 83
A89: 84
A90: 85
A91: 86
A92: 87
A93: 88
A94: 89
A95: 90
A96: 91
A97: 92
A98: 93
A99: 94
A100: 95
A101: 96
A102: 97
A103: 98
A104: 99
A105: 100
A106: 101
A107: 102
A108: 103
A109: 104
A110: 105
A111: 106
A112: 107
A113: 108
A114: 109
A115: 110
A116: 111
A117: 112
A118: 113
A119: 114
A120: 115
A121: 116
A122: 117
A123: 118
A124: 119
A125: 120
A126: 121
A127: 122
A128: 123
A129: 124
A130: 125
A131: 126
A132: 127
A133: 128
A134: 129
A135: 130 | E135: =IFERROR(IF(OR(C135="",D135=""),"",C135/D135),0) ->  | G135: =IF(H135="","",H135*I135) ->  | J135: =IFERROR(IF(B135="","",IF(D135>0,J134+C135,K135*L135)),"") ->  | K135: =IF(D135+H135=0,"",K134+D135-H135) -> 
A136: 131 | I136: =IF(B136="","",IF(D136>0,0,L135)) ->  | L136: =IF(OR(D136+H136<0,B136=""),"",IF(D136>0,J136/K136,IF(K136=0,0,L135))) -> 
A137: 132
A138: 133
A139: 134
A140: 135
A141: 136
A142: 137
A143: 138
A144: 139
A145: 140
A146: 141
A147: 142
A148: 143
A149: 144
A150: 145
A151: 146
A152: 147
A153: 148
A154: 149
A155: 150
A156: 151
A157: 152
A158: 153
A159: 154
A160: 155
A161: 156
A162: 157
A163: 158
A164: 159
A165: 160
A166: 161
A167: 162
A168: 163
A169: 164
A170: 165
A171: 166
A172: 167
A173: 168
A174: 169
A175: 170
A176: 171
A177: 172
A178: 173
A179: 174
A180: 175
A181: 176
A182: 177
A183: 178
A184: 179
A185: 180
A186: 181
A187: 182
A188: 183
A189: 184
A190: 185
A191: 186
A192: 187
A193: 188
A194: 189
A195: 190
A196: 191
A197: 192
A198: 193
A199: 194 | E199: =IFERROR(IF(OR(C199="",D199=""),"",C199/D199),0) ->  | G199: =IF(H199="","",H199*I199) ->  | J199: =IFERROR(IF(B199="","",IF(D199>0,J198+C199,K199*L199)),"") ->  | K199: =IF(D199+H199=0,"",K198+D199-H199) -> 
A200: 195 | I200: =IF(B200="","",IF(D200>0,0,L199)) ->  | L200: =IF(OR(D200+H200<0,B200=""),"",IF(D200>0,J200/K200,IF(K200=0,0,L199))) -> 
... 161 more rows

Sheet باكيتة هاي
A1: كارت صنف ( باكيتة هاى )
J2: =LOOKUP(1E+24,J:J) -> 507.3846154 | K2: =LOOKUP(1E+24,K:K) -> 17 | L2: =LOOKUP(1E+24,L:L) -> 29.84615385
A3: م | B3: التاريخ | C3: وارد | F3: منصرف | J3: رصيد
A4: م | C4: اجمالى | D4: كمية | E4: سعر | F4: رقم التشغيلة | G4: اجمالى | H4: كمية | I4: سعر | J4: اجمالى | K4: كمية | L4: سعر
A5: اجماليات | C5: =SUM(C6:C16) -> 802 | D5: =SUM(D6:D16) -> 27 | E5: =C5/D5 -> 29.7037037 | G5: =SUM(G6:G16) -> 294.6153846 | H5: =SUM(H6:H16) -> 10 | I5: =G5/H5 -> 29.46153846
A6: 1 | B6: 2021-01-01 | C6: 52 | D6: 2 | E6: =IFERROR(IF(OR(C6="",D6=""),"",C6/D6),0) -> 26 | G6: 0 | H6: 0 | I6: 0 | J6: =C6 -> 52 | K6: =D6 -> 2 | L6: =IFERROR(J6/K6,"") -> 26
A7: 2 | B7: 2021-01-04 | C7: 0 | D7: 0 | E7: =IFERROR(IF(OR(C7="",D7=""),"",C7/D7),0) -> 0 | F7: ت ق 1 | G7: =IF(H7="","",H7*I7) -> 26 | H7: 1 | I7: =IF(B7="","",IF(D7>0,0,L6)) -> 26 | J7: =IFERROR(IF(B7="","",IF(D7>0,J6+C7,K7*L7)),"") -> 26 | K7: =IF(D7+H7=0,"",K6+D7-H7) -> 1 | L7: =IF(OR(D7+H7<0,B7=""),"",IF(D7>0,J7/K7,IF(K7=0,0,L6))) -> 26
A8: 3 | B8: 2021-01-05 | C8: 750 | D8: 25 | E8: 30 | G8: 0 | H8: 0 | I8: 0 | J8: 776 | K8: 26 | L8: 29.84615385
A9: 4 | B9: 2021-01-07 | C9: 0 | D9: 0 | E9: 0 | F9: ت ق 2 | G9: 44.76923077 | H9: 1.5 | I9: 29.84615385 | J9: 731.2307692 | K9: 24.5 | L9: 29.84615385
A10: 5 | B10: 2021-01-08 | C10: 0 | D10: 0 | E10: 0 | F10: ت ق 3 | G10: 38.8 | H10: 1.3 | I10: 29.84615385 | J10: 692.4307692 | K10: 23.2 | L10: 29.84615385
A11: 6 | B11: 2021-01-09 | C11: 0 | D11: 0 | E11: 0 | F11: ت ق 4 | G11: 56.70769231 | H11: 1.9 | I11: 29.84615385 | J11: 635.7230769 | K11: 21.3 | L11: 29.84615385
A12: 7 | B12: 2021-01-10 | C12: 0 | D12: 0 | E12: 0 | F12: ت ق 5 | G12: 37.45692308 | H12: 1.255 | I12: 29.84615385 | J12: 598.2661538 | K12: 20.045 | L12: 29.84615385
A13: 8 | B13: 2021-01-16 | C13: 0 | D13: 0 | E13: 0 | F13: ت ق 6 | G13: 72.97384615 | H13: 2.445 | I13: 29.84615385 | J13: 525.2923077 | K13: 17.6 | L13: 29.84615385
A14: 9 | B14: 2021-01-18 | C14: 0 | D14: 0 | E14: 0 | F14: ت ق 7 | G14: 17.90769231 | H14: 0.6 | I14: =IF(B14="","",IF(D14>0,0,L13)) -> 29.84615385 | J14: 507.3846154 | K14: 17 | L14: =IF(OR(D14+H14<0,B14=""),"",IF(D14>0,J14/K14,IF(K14=0,0,L13))) -> 29.84615385
A15: 10 | I15: =IF(B15="","",IF(D15>0,0,L14)) ->  | L15: =IF(OR(D15+H15<0,B15=""),"",IF(D15>0,J15/K15,IF(K15=0,0,L14))) -> 
A16: 11
A17: 12
A18: 13
A19: 14
A20: 15
A21: 16
A22: 17
A23: 18
A24: 19
A25: 20
A26: 21
A27: 22
A28: 23
A29: 24
A30: 25
A31: 26
A32: 27
A33: 28
A34: 29
A35: 30
A36: 31
A37: 32
A38: 33
A39: 34
A40: 35
A41: 36
A42: 37
A43: 38
A44: 39
A45: 40
A46: 41
A47: 42
A48: 43
A49: 44
A50: 45
A51: 46
A52: 47
A53: 48
A54: 49
A55: 50
A56: 51
A57: 52
A58: 53
A59: 54
A60: 55
A61: 56
A62: 57
A63: 58
A64: 59
A65: 60
A66: 61
A67: 62
A68: 63
A69: 64
A70: 65
A71: 66 | E71: =IFERROR(IF(OR(C71="",D71=""),"",C71/D71),0) ->  | G71: =IF(H71="","",H71*I71) ->  | J71: =IFERROR(IF(B71="","",IF(D71>0,J70+C71,K71*L71)),"") ->  | K71: =IF(D71+H71=0,"",K70+D71-H71) -> 
A72: 67
A73: 68
A74: 69
A75: 70
A76: 71
A77: 72
A78: 73
A79: 74 | I79: =IF(B79="","",IF(D79>0,0,L78)) ->  | L79: =IF(OR(D79+H79<0,B79=""),"",IF(D79>0,J79/K79,IF(K79=0,0,L78))) -> 
A80: 75
A81: 76
A82: 77
A83: 78
A84: 79
A85: 80
A86: 81
A87: 82
A88: 83
A89: 84
A90: 85
A91: 86
A92: 87
A93: 88
A94: 89
A95: 90
A96: 91
A97: 92
A98: 93
A99: 94
A100: 95
A101: 96
A102: 97
A103: 98
A104: 99
A105: 100
A106: 101
A107: 102
A108: 103
A109: 104
A110: 105
A111: 106
A112: 107
A113: 108
A114: 109
A115: 110
A116: 111
A117: 112
A118: 113
A119: 114
A120: 115
A121: 116
A122: 117
A123: 118
A124: 119
A125: 120
A126: 121
A127: 122
A128: 123
A129: 124
A130: 125
A131: 126
A132: 127
A133: 128
A134: 129
A135: 130 | E135: =IFERROR(IF(OR(C135="",D135=""),"",C135/D135),0) ->  | G135: =IF(H135="","",H135*I135) ->  | J135: =IFERROR(IF(B135="","",IF(D135>0,J134+C135,K135*L135)),"") ->  | K135: =IF(D135+H135=0,"",K134+D135-H135) -> 
A136: 131
A137: 132
A138: 133
A139: 134
A140: 135
A141: 136
A142: 137
A143: 138 | I143: =IF(B143="","",IF(D143>0,0,L142)) ->  | L143: =IF(OR(D143+H143<0,B143=""),"",IF(D143>0,J143/K143,IF(K143=0,0,L142))) -> 
A144: 139
A145: 140
A146: 141
A147: 142
A148: 143
A149: 144
A150: 145
A151: 146
A152: 147
A153: 148
A154: 149
A155: 150
A156: 151
A157: 152
A158: 153
A159: 154
A160: 155
A161: 156
A162: 157
A163: 158
A164: 159
A165: 160
A166: 161
A167: 162
A168: 163
A169: 164
A170: 165
A171: 166
A172: 167
A173: 168
A174: 169
A175: 170
A176: 171
A177: 172
A178: 173
A179: 174
A180: 175
A181: 176
A182: 177
A183: 178
A184: 179
A185: 180
A186: 181
A187: 182
A188: 183
A189: 184
A190: 185
A191: 186
A192: 187
A193: 188
A194: 189
A195: 190
A196: 191
A197: 192
A198: 193
A199: 194 | E199: =IFERROR(IF(OR(C199="",D199=""),"",C199/D199),0) ->  | G199: =IF(H199="","",H199*I199) ->  | J199: =IFERROR(IF(B199="","",IF(D199>0,J198+C199,K199*L199)),"") ->  | K199: =IF(D199+H199=0,"",K198+D199-H199) -> 
A200: 195
... 161 more rows

Sheet باكيتة نايلون
A1: كارت صنف ( باكيتة نايلون )
J2: =LOOKUP(1E+24,J:J) -> 775.5 | K2: =LOOKUP(1E+24,K:K) -> 23.5 | L2: =LOOKUP(1E+24,L:L) -> 33
A3: م | B3: التاريخ | C3: وارد | F3: منصرف | J3: رصيد
A4: م | C4: اجمالى | D4: كمية | E4: سعر | F4: رقم التشغيلة | G4: اجمالى | H4: كمية | I4: سعر | J4: اجمالى | K4: كمية | L4: سعر
A5: اجماليات | C5: =SUM(C6:C16) -> 825 | D5: =SUM(D6:D16) -> 25 | E5: =C5/D5 -> 33 | G5: =SUM(G6:G16) -> 49.5 | H5: =SUM(H6:H16) -> 1.5 | I5: =G5/H5 -> 33
A6: 1 | B6: 2021-01-05 | C6: 825 | D6: 25 | E6: =IFERROR(IF(OR(C6="",D6=""),"",C6/D6),0) -> 33 | G6: 0 | H6: 0 | I6: 0 | J6: =C6 -> 825 | K6: =D6 -> 25 | L6: =IFERROR(J6/K6,"") -> 33
A7: 2 | B7: 2021-01-05 | C7: 0 | D7: 0 | E7: =IFERROR(IF(OR(C7="",D7=""),"",C7/D7),0) -> 0 | F7: ت ز 1 | G7: =IF(H7="","",H7*I7) -> 49.5 | H7: 1.5 | I7: =IF(B7="","",IF(D7>0,0,L6)) -> 33 | J7: =IFERROR(IF(B7="","",IF(D7>0,J6+C7,K7*L7)),"") -> 775.5 | K7: =IF(D7+H7=0,"",K6+D7-H7) -> 23.5 | L7: =IF(OR(D7+H7<0,B7=""),"",IF(D7>0,J7/K7,IF(K7=0,0,L6))) -> 33
A8: 3 | I8: =IF(B8="","",IF(D8>0,0,L7)) ->  | L8: =IF(OR(D8+H8<0,B8=""),"",IF(D8>0,J8/K8,IF(K8=0,0,L7))) -> 
A9: 4
A10: 5
A11: 6
A12: 7
A13: 8
A14: 9
A15: 10
A16: 11
A17: 12
A18: 13
A19: 14
A20: 15
A21: 16
A22: 17
A23: 18
A24: 19
A25: 20
A26: 21
A27: 22
A28: 23
A29: 24
A30: 25
A31: 26
A32: 27
A33: 28
A34: 29
A35: 30
A36: 31
A37: 32
A38: 33
A39: 34
A40: 35
A41: 36
A42: 37
A43: 38
A44: 39
A45: 40
A46: 41
A47: 42
A48: 43
A49: 44
A50: 45
A51: 46
A52: 47
A53: 48
A54: 49
A55: 50
A56: 51
A57: 52
A58: 53
A59: 54
A60: 55
A61: 56
A62: 57
A63: 58
A64: 59
A65: 60
A66: 61
A67: 62
A68: 63
A69: 64
A70: 65
A71: 66 | E71: =IFERROR(IF(OR(C71="",D71=""),"",C71/D71),0) ->  | G71: =IF(H71="","",H71*I71) ->  | J71: =IFERROR(IF(B71="","",IF(D71>0,J70+C71,K71*L71)),"") ->  | K71: =IF(D71+H71=0,"",K70+D71-H71) -> 
A72: 67 | I72: =IF(B72="","",IF(D72>0,0,L71)) ->  | L72: =IF(OR(D72+H72<0,B72=""),"",IF(D72>0,J72/K72,IF(K72=0,0,L71))) -> 
A73: 68
A74: 69
A75: 70
A76: 71
A77: 72
A78: 73
A79: 74
A80: 75
A81: 76
A82: 77
A83: 78
A84: 79
A85: 80
A86: 81
A87: 82
A88: 83
A89: 84
A90: 85
A91: 86
A92: 87
A93: 88
A94: 89
A95: 90
A96: 91
A97: 92
A98: 93
A99: 94
A100: 95
A101: 96
A102: 97
A103: 98
A104: 99
A105: 100
A106: 101
A107: 102
A108: 103
A109: 104
A110: 105
A111: 106
A112: 107
A113: 108
A114: 109
A115: 110
A116: 111
A117: 112
A118: 113
A119: 114
A120: 115
A121: 116
A122: 117
A123: 118
A124: 119
A125: 120
A126: 121
A127: 122
A128: 123
A129: 124
A130: 125
A131: 126
A132: 127
A133: 128
A134: 129
A135: 130 | E135: =IFERROR(IF(OR(C135="",D135=""),"",C135/D135),0) ->  | G135: =IF(H135="","",H135*I135) ->  | J135: =IFERROR(IF(B135="","",IF(D135>0,J134+C135,K135*L135)),"") ->  | K135: =IF(D135+H135=0,"",K134+D135-H135) -> 
A136: 131 | I136: =IF(B136="","",IF(D136>0,0,L135)) ->  | L136: =IF(OR(D136+H136<0,B136=""),"",IF(D136>0,J136/K136,IF(K136=0,0,L135))) -> 
A137: 132
A138: 133
A139: 134
A140: 135
A141: 136
A142: 137
A143: 138
A144: 139
A145: 140
A146: 141
A147: 142
A148: 143
A149: 144
A150: 145
A151: 146
A152: 147
A153: 148
A154: 149
A155: 150
A156: 151
A157: 152
A158: 153
A159: 154
A160: 155
A161: 156
A162: 157
A163: 158
A164: 159
A165: 160
A166: 161
A167: 162
A168: 163
A169: 164
A170: 165
A171: 166
A172: 167
A173: 168
A174: 169
A175: 170
A176: 171
A177: 172
A178: 173
A179: 174
A180: 175
A181: 176
A182: 177
A183: 178
A184: 179
A185: 180
A186: 181
A187: 182
A188: 183
A189: 184
A190: 185
A191: 186
A192: 187
A193: 188
A194: 189
A195: 190
A196: 191
A197: 192
A198: 193
A199: 194 | E199: =IFERROR(IF(OR(C199="",D199=""),"",C199/D199),0) ->  | G199: =IF(H199="","",H199*I199) ->  | J199: =IFERROR(IF(B199="","",IF(D199>0,J198+C199,K199*L199)),"") ->  | K199: =IF(D199+H199=0,"",K198+D199-H199) -> 
A200: 195 | I200: =IF(B200="","",IF(D200>0,0,L199)) ->  | L200: =IF(OR(D200+H200<0,B200=""),"",IF(D200>0,J200/K200,IF(K200=0,0,L199))) -> 
... 161 more rows
